Workbook

Sheet Text
C1: Beurteilung der Wirtschaftlichkeit einer
C2: Investition in eine Biogasanlage
C3: (Trockenfermentation im BATCH-Verfahren)
C5: Bei betrieblichen Überlegungen zu Investitionen im Bereich der Biogastechnolgie kommt der
C6: ökonomischen Beurteilung der Anlage eine entscheidende Rolle zu.
C7: Aufgrund einer Vielzahl von Zusammenhängen mit anderen Betriebszweigen der landwirtschaftlichen
C8: Produktion ist es notwendig, die Planung ganzheitlich durchzuführen (um z.B. auch arbeitswirt-
C9: schaftliche Aspekte berücksichtigen zu können).
C11: Diese Arbeitsmappe ermöglicht es, die Wirtschaftlichkeit einer Investition in eine Biogasanlage
C12: zu untersuchen, und dabei Daten aus dem Betriebsplanungssystem MAX zu übernehmen.
C13: Das Betriebsplanungssystem MAX ermöglicht die Kalkulation von Deckungsbeiträgen (z.B. auch für die
C14: Erzeugung von Substrat für die Biogasanlage) sowie die gesamtbetriebliche Planung von landwirt-
C15: schaftlichen Betrieben auf Basis der Vergleichsdeckungsbeitragsrechnung.
C16: Im Menü Bearbeiten | Verknüpfungen können Sie die Quelldatei ändern.
C18: Das Kernstück dieser Arbeitsmappe ist die mehrperiodische Investitionsrechnung auf dem Blatt | Q18: MPI
C19: Alle dort verarbeiteten Information stammen aus einem der nachfolgenden Arbeitsblätter. So kann für
C20: jeden Koeffizienten der Kalkulation ersehen werden, aus welchen Einzelpositionen er gebildet wird.
C21: Diese Einzelpositionen können selbstverständlich auch nach eigenem Ermessen verändert werden.
C23: Um den Datenfluss in der Arbeitsmappe besser nachvollziehen zu können, empfehlen wir den Gebrauch
C24: des Excel-Detektives. Aktivieren Sie die Detektiv-Symbolleiste einfach mit Strg+Umschalt+D
D26: Detektiv-Symbolleiste:
C29: Wenn Sie wissen möchten, woher die Daten einer Zelle kommen oder wohin sie weiter übertragen
C30: weden, markieren Sie die Zelle und klicken auf den entsprechenden Button der Symbolleiste:
C31: Excel zeigt dann Spurpfeile zu den verbudenen Zellen an. Doppelklicken Sie auf die Pfeile, um
C32: mit dem Zellzeiger zu den vernundenen Zellen zu springen.
F34: zeigt die Spuren zu den Vorgängerzellen
F35: blendet die Spuren zu den Vorgängerzellen wieder aus
F36: zeigt die Spuren zu den Nachfolgerzellen
F37: blendet die Spuren zu den Nachfolgerzellen wieder aus
F38: Blendet alle Spurpfeile auf dem Blatt aus
C40: Durch mehrfaches Klicken auf einen der Buttons wird stufenweise immer eine Bezugsebene
C41: mehr/weniger angezeigt!
C44: Die Kalkulation der Einzelpositionen ist auf die folgenden Tabellenblätter verteilt:
D45: Ertrag | H45: Ermittlung des Stromertrags, Wärmeertrags und Dungwertes
D46: Anlagekosten | H46: Zusammenstellung der Investitions- und Betriebskosten der Anlage
D47: Substrat | H47: Kosten/Aufwendugen zu Erzeugung/Bereitstellung von Substrat
D48: Beschickung | H48: Kosten und Arbeitszeit für die Beschickung des Containers
C50: Substratzusammensetzung
C52: Bei der Ermittlung der Kosten/Aufwendugen zu Erzeugung von Substrat auf den betrieblichen
C53: Nutzflächen kann auf Daten aus dem Betriebsplanungssystem MAX zurückgegriffen werden.
C54: Wird auf den betrieblichen Flächen beispielsweise Silomais zur Verarbeitung in der Biogasanlage
C55: produziert, so ist im System MAX dafür eine Deckungsbeitragskalkulation zu erstellen. Wie jedes
C56: andere Produktionsverfahren im MAX erhält auch diese Silomais-Produktion im MAX eine
C57: Code-Nummer, die das Verfahren eindeutig identifiziert (vorzunehmen auf dem Blatt ZusPV im MAX).
C58: Durch Eingabe dieser Code-Nummer auf dem Blatt 'Substrat' dieser Arbeitsmappe werden alle
C59: benötigten Informationen aus dem MAX automatisch übernommen. Dabei besteht eine dynamische
C60: Datenverknüpfung, d.h. Änderungen an den Kalkulationen im MAX werden sofort an die Investitions-
C61: rechnung dieser Arbeitsmappe weitergegeben, wenn beide Arbeitsmappen geöffnet sind.
C63: Im gegenwärtig kalkulierten Beispiel setzt sich das Substrat wie folgt zusammen:
C65: Übersicht 1: | G65: Substratzusammensetzung
C99: Wirtschaftlichkeit
C101: Zur Beurteilung der Wirtschaftlichekit der Investition dient die Interne Verzinsung des eingesetzten
C102: Gesamtkapitals. Diese Kenngröße hängt in hohem Maß von der Gasausbeute je dt Substrat sowie
C103: vom Methangehalt des Gases ab.
C104: In der Kalkulation sind folgende Werte für die Gasausbeute und den Methangehalt verwendet:
D105: Gasausbeute | I105: 12.6 | J105: m³/dt
D106: Methangehalt des Gases | I106: 0.6
C108: Da beide Koeffizienten variabel sind, wurde untersucht welche interne Kapitalverzinsung aus
C109: veränderten Werten für die Gasausbeute und den Methangehalt resultiert.
C111: Übersicht 2: | G111: Interne Kapitalverzinsung bei variabler Gasausbeute und Methangehalt
H112: Gasausbeute in m³ je dt Substrat
G113: =MPI!$D$28 -> 0.4674632589 | H113: 10 | I113: =H113+0.5 -> 10.5 | J113: 11 | K113: 11.5 | L113: 12 | M113: 12.5 | N113: 13 | O113: 13.5 | P113: 14
F114: Methangehalt d. Gases | G114: 0.65 | H114: 0.4168967745 | I114: 0.4168967745 | J114: 0.4168967745 | K114: 0.4168967745 | L114: 0.4168967745 | M114: 0.4168967745 | N114: 0.4168967745 | O114: 0.4168967745 | P114: 0.4168967745
G115: =G114+2.5% -> 0.675 | H115: 0.4498735595 | I115: 0.4498735595 | J115: 0.4498735595 | K115: 0.4498735595 | L115: 0.4498735595 | M115: 0.4498735595 | N115: 0.4498735595 | O115: 0.4498735595 | P115: 0.4498735595
G116: 0.7 | H116: 0.4828191721 | I116: 0.4828191721 | J116: 0.4828191721 | K116: 0.4828191721 | L116: 0.4828191721 | M116: 0.4828191721 | N116: 0.4828191721 | O116: 0.4828191721 | P116: 0.4828191721
G117: 0.725 | H117: 0.5157429731 | I117: 0.5157429731 | J117: 0.5157429731 | K117: 0.5157429731 | L117: 0.5157429731 | M117: 0.5157429731 | N117: 0.5157429731 | O117: 0.5157429731 | P117: 0.5157429731
G118: 0.75 | H118: 0.5486511898 | I118: 0.5486511898 | J118: 0.5486511898 | K118: 0.5486511898 | L118: 0.5486511898 | M118: 0.5486511898 | N118: 0.5486511898 | O118: 0.5486511898 | P118: 0.5486511898
G119: 0.775 | H119: 0.5815479947 | I119: 0.5815479947 | J119: 0.5815479947 | K119: 0.5815479947 | L119: 0.5815479947 | M119: 0.5815479947 | N119: 0.5815479947 | O119: 0.5815479947 | P119: 0.5815479947
G120: 0.8 | H120: 0.614436208 | I120: 0.614436208 | J120: 0.614436208 | K120: 0.614436208 | L120: 0.614436208 | M120: 0.614436208 | N120: 0.614436208 | O120: 0.614436208 | P120: 0.614436208
G121: 0.825 | H121: 0.6473177554 | I121: 0.6473177554 | J121: 0.6473177554 | K121: 0.6473177554 | L121: 0.6473177554 | M121: 0.6473177554 | N121: 0.6473177554 | O121: 0.6473177554 | P121: 0.6473177554
D123: Beispiel zum Ablesen der Werte:
D124: Die interne Kapitalverzinsung für eine Gasausbeute von 12,5 m³/dt bei einem Methangehalt des
D125: Gases von 75% ist: | H125: =M118 -> 0.5486511898
C128: Zuschuss-Niveau
C130: Ein weiterer wichtiger Einflussfaktor auf die einzelbetriebliche Wirtschaftlichkeit einer Biogasanlage
C131: ist der Geldbetrag des von staatlicher Seite als Investitionszuschuss bereitgestellt wird.
C132: Wenn die erzielte Kapitalverzinsung der Investition unter die (Nutzungs-)Kosten für die Kapitalbereit-
C133: stelung fällt, ist die Investition als nicht wirtschaftlich zu beurteilen. Um die entstehenden Verluste
C134: auszugleichen, wären daher höhere Zuschüsse nötig.
C135: Die nachfolgende Übersicht zeigt, welchen Anteil an der Investitionssumme der Zuschuss mindestens
C136: betragen muss, damit für den Betrieb die Wirtschaftlichkeitsgrenze erreicht ist.
C137: Die Investitionssumme im gegenwärtigen Beispiel beträgt: | M137: =FIXED(MPI!E14,0)&" "&Curr -> 452,782 0
C138: Die zugrundegelegten (Nutzungs-)Kosten für die Kapitalbereitstellung betragen: | O138: =MPI!G27 -> 0.05
C140: Übersicht 3: | G140: Mindest-Zuschuss-Niveau bei variabler Gasausbeute und Methangehalt
H141: Gasausbeute in m³ je dt Substrat
G142: =MPI!#REF! ->  | H142: 10 | I142: =H142+0.5 -> 10.5 | J142: 11 | K142: 11.5 | L142: 12 | M142: 12.5 | N142: 13 | O142: 13.5 | P142: 14
F143: Methangehalt d. Gases | G143: 0.65
G144: =G143+2.5% -> 0.675
G145: 0.7
G146: 0.725
G147: 0.75
G148: 0.775
G149: 0.8
G150: 0.825
D152: Beispiel zum Ablesen der Werte:
D153: Das Mindest-Zuschuss-Niveau bei einer Gasausbeute von 12,5 m³/dt und bei einem Methangehalt
D154: des Gases von 75% ist: | I154: =M147 -> 
D155: Dies bedeutet das bei einem Zuschuss von | K155: =I154 ->  | L155: × Investitionssumme
D156: die interne Kapitalverzinsung exakt | J156: =MPI!G27 -> 0.05 | K156: beträgt.
D158: Die negative Werte in der Übersicht sind so zu interpretieren, dass in diesen Fällen überhaupt
D159: keine Zuschuss nötig ist, um die geforderte Mindestverzinsung zu erreichen.

Sheet MPI
B1: Mehrperiodische Investionsrechnung für eine Biogasanlage (Nassfermentation)
B3: Perioden | E3: 0 | F3: 1 | G3: 2 | H3: 3 | I3: 4 | J3: 5 | K3: 6 | L3: 7 | M3: 8 | N3: 9 | O3: 10 | P3: 11 | Q3: 12 | R3: 13 | S3: 14 | T3: 15 | U3: 16 | V3: 17 | W3: 18 | X3: 19 | Y3: 20
B5: Einzahlungen
B6: Energieertrag | F6: =Ertrag!$E$34 -> 660714.4485 | G6: =Ertrag!$E$34 -> 660714.4485 | H6: =Ertrag!$E$34 -> 660714.4485 | I6: =Ertrag!$E$34 -> 660714.4485 | J6: =Ertrag!$E$34 -> 660714.4485 | K6: =Ertrag!$E$34 -> 660714.4485 | L6: =Ertrag!$E$34 -> 660714.4485 | M6: =Ertrag!$E$34 -> 660714.4485 | N6: =Ertrag!$E$34 -> 660714.4485 | O6: =Ertrag!$E$34 -> 660714.4485 | P6: =Ertrag!$E$34 -> 660714.4485 | Q6: =Ertrag!$E$34 -> 660714.4485 | R6: =Ertrag!$E$34 -> 660714.4485 | S6: =Ertrag!$E$34 -> 660714.4485 | T6: =Ertrag!$E$34 -> 660714.4485 | U6: =Ertrag!$E$34 -> 660714.4485 | V6: =Ertrag!$E$34 -> 660714.4485 | W6: =Ertrag!$E$34 -> 660714.4485 | X6: =Ertrag!$E$34 -> 660714.4485 | Y6: =Ertrag!$E$34 -> 660714.4485
B7: Dungwert | F7: =Ertrag!$J$69 -> 54363.6684 | G7: =Ertrag!$J$69 -> 54363.6684 | H7: =Ertrag!$J$69 -> 54363.6684 | I7: =Ertrag!$J$69 -> 54363.6684 | J7: =Ertrag!$J$69 -> 54363.6684 | K7: =Ertrag!$J$69 -> 54363.6684 | L7: =Ertrag!$J$69 -> 54363.6684 | M7: =Ertrag!$J$69 -> 54363.6684 | N7: =Ertrag!$J$69 -> 54363.6684 | O7: =Ertrag!$J$69 -> 54363.6684 | P7: =Ertrag!$J$69 -> 54363.6684 | Q7: =Ertrag!$J$69 -> 54363.6684 | R7: =Ertrag!$J$69 -> 54363.6684 | S7: =Ertrag!$J$69 -> 54363.6684 | T7: =Ertrag!$J$69 -> 54363.6684 | U7: =Ertrag!$J$69 -> 54363.6684 | V7: =Ertrag!$J$69 -> 54363.6684 | W7: =Ertrag!$J$69 -> 54363.6684 | X7: =Ertrag!$J$69 -> 54363.6684 | Y7: =Ertrag!$J$69 -> 54363.6684
B8: Zuschuss | F8: =Anlagekosten!G31 -> 0
B9: Umlaufvermögensfreisetzung | Y9: =$E$15 -> 215031.8439
B10: Restwerte Anlagen
B11: Summe Einzahlungen | E11: =SUM(E6:E10) -> 0 | F11: =SUM(F6:F10) -> 715078.1169 | G11: =SUM(G6:G10) -> 715078.1169 | H11: 715078.1169 | I11: 715078.1169 | J11: 715078.1169 | K11: 715078.1169 | L11: 715078.1169 | M11: 715078.1169 | N11: 715078.1169 | O11: 715078.1169 | P11: 715078.1169 | Q11: 715078.1169 | R11: 715078.1169 | S11: 715078.1169 | T11: 715078.1169 | U11: 715078.1169 | V11: 715078.1169 | W11: 715078.1169 | X11: 715078.1169 | Y11: 930109.9608
B13: Auszahlungen
B14: Investition Anlage | E14: =Anlagekosten!G32 -> 452782
B15: Umlaufvermögen Substraterzeugung | E15: =Substrat!$R$25 -> 215031.8439
B16: Großreperaturen (3-jährig) | H16: =Anlagekosten!$H$29 -> 10000 | K16: =Anlagekosten!$H$29 -> 10000 | N16: =Anlagekosten!$H$29 -> 10000 | Q16: =Anlagekosten!$H$29 -> 10000 | T16: =Anlagekosten!$H$29 -> 10000 | W16: =Anlagekosten!$H$29 -> 10000
B17: Betriebsstoffe, Wartung (jährlich) | F17: =Anlagekosten!$I$29 -> 5000 | G17: =Anlagekosten!$I$29 -> 5000 | H17: =Anlagekosten!$I$29 -> 5000 | I17: =Anlagekosten!$I$29 -> 5000 | J17: =Anlagekosten!$I$29 -> 5000 | K17: =Anlagekosten!$I$29 -> 5000 | L17: =Anlagekosten!$I$29 -> 5000 | M17: =Anlagekosten!$I$29 -> 5000 | N17: =Anlagekosten!$I$29 -> 5000 | O17: =Anlagekosten!$I$29 -> 5000 | P17: =Anlagekosten!$I$29 -> 5000 | Q17: =Anlagekosten!$I$29 -> 5000 | R17: =Anlagekosten!$I$29 -> 5000 | S17: =Anlagekosten!$I$29 -> 5000 | T17: =Anlagekosten!$I$29 -> 5000 | U17: =Anlagekosten!$I$29 -> 5000 | V17: =Anlagekosten!$I$29 -> 5000 | W17: =Anlagekosten!$I$29 -> 5000 | X17: =Anlagekosten!$I$29 -> 5000 | Y17: =Anlagekosten!$I$29 -> 5000
B18: Var. Kosten Substraterzeugung | F18: =Substrat!$R$42 -> 215031.8439 | G18: =Substrat!$R$42 -> 215031.8439 | H18: =Substrat!$R$42 -> 215031.8439 | I18: =Substrat!$R$42 -> 215031.8439 | J18: =Substrat!$R$42 -> 215031.8439 | K18: =Substrat!$R$42 -> 215031.8439 | L18: =Substrat!$R$42 -> 215031.8439 | M18: =Substrat!$R$42 -> 215031.8439 | N18: =Substrat!$R$42 -> 215031.8439 | O18: =Substrat!$R$42 -> 215031.8439 | P18: =Substrat!$R$42 -> 215031.8439 | Q18: =Substrat!$R$42 -> 215031.8439 | R18: =Substrat!$R$42 -> 215031.8439 | S18: =Substrat!$R$42 -> 215031.8439 | T18: =Substrat!$R$42 -> 215031.8439 | U18: =Substrat!$R$42 -> 215031.8439 | V18: =Substrat!$R$42 -> 215031.8439 | W18: =Substrat!$R$42 -> 215031.8439 | X18: =Substrat!$R$42 -> 215031.8439 | Y18: =Substrat!$R$42 -> 215031.8439
B19: Var. Kosten Beschickung Substratausbringung | F19: =Beschickung!$K$31 -> 41353.96408 | G19: =Beschickung!$K$31 -> 41353.96408 | H19: =Beschickung!$K$31 -> 41353.96408 | I19: =Beschickung!$K$31 -> 41353.96408 | J19: =Beschickung!$K$31 -> 41353.96408 | K19: =Beschickung!$K$31 -> 41353.96408 | L19: =Beschickung!$K$31 -> 41353.96408 | M19: =Beschickung!$K$31 -> 41353.96408 | N19: =Beschickung!$K$31 -> 41353.96408 | O19: =Beschickung!$K$31 -> 41353.96408 | P19: =Beschickung!$K$31 -> 41353.96408 | Q19: =Beschickung!$K$31 -> 41353.96408 | R19: =Beschickung!$K$31 -> 41353.96408 | S19: =Beschickung!$K$31 -> 41353.96408 | T19: =Beschickung!$K$31 -> 41353.96408 | U19: =Beschickung!$K$31 -> 41353.96408 | V19: =Beschickung!$K$31 -> 41353.96408 | W19: =Beschickung!$K$31 -> 41353.96408 | X19: =Beschickung!$K$31 -> 41353.96408 | Y19: =Beschickung!$K$31 -> 41353.96408
B20: Pachtansatz Ackerfläche | C20: 300 | D20: =Curr&"/ha" -> 0/ha | F20: =Substrat!$T$42*MPI!$C$20 -> 74664 | G20: =Substrat!$T$42*MPI!$C$20 -> 74664 | H20: =Substrat!$T$42*MPI!$C$20 -> 74664 | I20: =Substrat!$T$42*MPI!$C$20 -> 74664 | J20: =Substrat!$T$42*MPI!$C$20 -> 74664 | K20: =Substrat!$T$42*MPI!$C$20 -> 74664 | L20: =Substrat!$T$42*MPI!$C$20 -> 74664 | M20: =Substrat!$T$42*MPI!$C$20 -> 74664 | N20: =Substrat!$T$42*MPI!$C$20 -> 74664 | O20: =Substrat!$T$42*MPI!$C$20 -> 74664 | P20: =Substrat!$T$42*MPI!$C$20 -> 74664 | Q20: =Substrat!$T$42*MPI!$C$20 -> 74664 | R20: =Substrat!$T$42*MPI!$C$20 -> 74664 | S20: =Substrat!$T$42*MPI!$C$20 -> 74664 | T20: =Substrat!$T$42*MPI!$C$20 -> 74664 | U20: =Substrat!$T$42*MPI!$C$20 -> 74664 | V20: =Substrat!$T$42*MPI!$C$20 -> 74664 | W20: =Substrat!$T$42*MPI!$C$20 -> 74664 | X20: =Substrat!$T$42*MPI!$C$20 -> 74664 | Y20: =Substrat!$T$42*MPI!$C$20 -> 74664
B21: Pachtansatz Grünland | C21: 150 | D21: =Curr&"/ha" -> 0/ha | F21: =Substrat!$U$42*MPI!$C$21 -> 2311.5 | G21: =Substrat!$U$42*MPI!$C$21 -> 2311.5 | H21: =Substrat!$U$42*MPI!$C$21 -> 2311.5 | I21: =Substrat!$U$42*MPI!$C$21 -> 2311.5 | J21: =Substrat!$U$42*MPI!$C$21 -> 2311.5 | K21: =Substrat!$U$42*MPI!$C$21 -> 2311.5 | L21: =Substrat!$U$42*MPI!$C$21 -> 2311.5 | M21: =Substrat!$U$42*MPI!$C$21 -> 2311.5 | N21: =Substrat!$U$42*MPI!$C$21 -> 2311.5 | O21: =Substrat!$U$42*MPI!$C$21 -> 2311.5 | P21: =Substrat!$U$42*MPI!$C$21 -> 2311.5 | Q21: =Substrat!$U$42*MPI!$C$21 -> 2311.5 | R21: =Substrat!$U$42*MPI!$C$21 -> 2311.5 | S21: =Substrat!$U$42*MPI!$C$21 -> 2311.5 | T21: =Substrat!$U$42*MPI!$C$21 -> 2311.5 | U21: =Substrat!$U$42*MPI!$C$21 -> 2311.5 | V21: =Substrat!$U$42*MPI!$C$21 -> 2311.5 | W21: =Substrat!$U$42*MPI!$C$21 -> 2311.5 | X21: =Substrat!$U$42*MPI!$C$21 -> 2311.5 | Y21: =Substrat!$U$42*MPI!$C$21 -> 2311.5
B22: Lohnansatz | C22: 15 | D22: =Curr&"/AKh" -> 0/AKh | F22: =(Substrat!$S$42+Beschickung!$J$31)*MPI!$C$22 -> 62276.72213 | G22: =(Substrat!$S$42+Beschickung!$J$31)*MPI!$C$22 -> 62276.72213 | H22: =(Substrat!$S$42+Beschickung!$J$31)*MPI!$C$22 -> 62276.72213 | I22: =(Substrat!$S$42+Beschickung!$J$31)*MPI!$C$22 -> 62276.72213 | J22: =(Substrat!$S$42+Beschickung!$J$31)*MPI!$C$22 -> 62276.72213 | K22: =(Substrat!$S$42+Beschickung!$J$31)*MPI!$C$22 -> 62276.72213 | L22: =(Substrat!$S$42+Beschickung!$J$31)*MPI!$C$22 -> 62276.72213 | M22: =(Substrat!$S$42+Beschickung!$J$31)*MPI!$C$22 -> 62276.72213 | N22: =(Substrat!$S$42+Beschickung!$J$31)*MPI!$C$22 -> 62276.72213 | O22: =(Substrat!$S$42+Beschickung!$J$31)*MPI!$C$22 -> 62276.72213 | P22: =(Substrat!$S$42+Beschickung!$J$31)*MPI!$C$22 -> 62276.72213 | Q22: =(Substrat!$S$42+Beschickung!$J$31)*MPI!$C$22 -> 62276.72213 | R22: =(Substrat!$S$42+Beschickung!$J$31)*MPI!$C$22 -> 62276.72213 | S22: =(Substrat!$S$42+Beschickung!$J$31)*MPI!$C$22 -> 62276.72213 | T22: =(Substrat!$S$42+Beschickung!$J$31)*MPI!$C$22 -> 62276.72213 | U22: =(Substrat!$S$42+Beschickung!$J$31)*MPI!$C$22 -> 62276.72213 | V22: =(Substrat!$S$42+Beschickung!$J$31)*MPI!$C$22 -> 62276.72213 | W22: =(Substrat!$S$42+Beschickung!$J$31)*MPI!$C$22 -> 62276.72213 | X22: =(Substrat!$S$42+Beschickung!$J$31)*MPI!$C$22 -> 62276.72213 | Y22: =(Substrat!$S$42+Beschickung!$J$31)*MPI!$C$22 -> 62276.72213
B23: Summe Auszahlungen | E23: =SUM(E14:E22) -> 667813.8439 | F23: =SUM(F14:F22) -> 400638.0301 | G23: 400638.0301 | H23: 410638.0301 | I23: 400638.0301 | J23: 400638.0301 | K23: 410638.0301 | L23: 400638.0301 | M23: 400638.0301 | N23: 410638.0301 | O23: 400638.0301 | P23: 400638.0301 | Q23: 410638.0301 | R23: 400638.0301 | S23: 400638.0301 | T23: 410638.0301 | U23: 400638.0301 | V23: 400638.0301 | W23: 410638.0301 | X23: 400638.0301 | Y23: 400638.0301
B25: Cash Flow I | E25: =E11-E23 -> -667813.8439 | F25: 314440.0868 | G25: 314440.0868 | H25: 304440.0868 | I25: 314440.0868 | J25: 314440.0868 | K25: 304440.0868 | L25: 314440.0868 | M25: 314440.0868 | N25: 304440.0868 | O25: 314440.0868 | P25: 314440.0868 | Q25: 304440.0868 | R25: 314440.0868 | S25: 314440.0868 | T25: 304440.0868 | U25: 314440.0868 | V25: 314440.0868 | W25: 304440.0868 | X25: 314440.0868 | Y25: 529471.9307
B27: Kapitalwert: | C27: =Curr -> 0 | D27: =NPV(G27,F25:Y25)+E25 -> 3294767.527 | E27: (Kalkulationszinsfuß : | G27: 0.05 | H27: )
B28: Interne Verzinsung | D28: =IRR(E25:Y25) -> 0.4674632589
B31: Fremdfinanzierung
B33: Darlehensbetrag | E33: 400000 | F33: Zinssatz | G33: 0.06 | H33: Laufzeit | I33: 15 | J33: Jahre
B34: Annuitätendarlehen | C34: Annuität | E34: =PMT(G33,I33,E33) -> -41185.10558
B36: Einzahlung | E36: =E33 -> 400000
B37: Auszahlung | F37: =$E$34 -> -41185.10558 | G37: =$E$34 -> -41185.10558 | H37: -41185.10558 | I37: -41185.10558 | J37: -41185.10558 | K37: -41185.10558 | L37: -41185.10558 | M37: -41185.10558 | N37: -41185.10558 | O37: -41185.10558 | P37: -41185.10558 | Q37: -41185.10558 | R37: -41185.10558 | S37: -41185.10558 | T37: -41185.10558
B38: CF-Fremdfinanzierung | E38: =E36+E37 -> 400000 | F38: =F36+F37 -> -41185.10558 | G38: -41185.10558 | H38: -41185.10558 | I38: -41185.10558 | J38: -41185.10558 | K38: -41185.10558 | L38: -41185.10558 | M38: -41185.10558 | N38: -41185.10558 | O38: -41185.10558 | P38: -41185.10558 | Q38: -41185.10558 | R38: -41185.10558 | S38: -41185.10558 | T38: -41185.10558 | U38: 0 | V38: 0 | W38: 0 | X38: 0 | Y38: 0
B40: Cash Flow II | E40: =E25+E38 -> -267813.8439 | F40: 273254.9812 | G40: 273254.9812 | H40: 263254.9812 | I40: 273254.9812 | J40: 273254.9812 | K40: 263254.9812 | L40: 273254.9812 | M40: 273254.9812 | N40: 263254.9812 | O40: 273254.9812 | P40: 273254.9812 | Q40: 263254.9812 | R40: 273254.9812 | S40: 273254.9812 | T40: 263254.9812 | U40: 314440.0868 | V40: 314440.0868 | W40: 304440.0868 | X40: 314440.0868 | Y40: 529471.9307
B42: Kapitalwert: | C42: =Curr -> 0 | D42: =NPV(G42,F40:Y40)+E40 -> 3605201.444 | E42: (Kalkulationszinsfuß : | G42: 0.04 | H42: )
B43: Interne Verzinsung | D43: =IRR(E40:Y40) -> 1.015043462

Sheet Ertrag
B2: Ertragsberechnung
B4: Energieertrag
B5: 1 | C5: Energiegehalt des Methangases (100 %) | E5: 9.94 | F5: kWh/m³
B6: 2 | C6: × Methangehalt bei Produktion | E6: =Methangehalt -> 0.6
B7: 3 | C7: = Energiegeh. d. Methangases (Prod.) | E7: =E5*E6 -> 5.964 | F7: kWh/m³
B8: –
B9: 4 | C9: Gesamtsubstratmenge | E9: =Substrat!O42 -> 30205.9503 | F9: dt/oTS
B10: 5 | C10: × Gasaubeute je dt | E10: =Substrat!Q42/Substrat!O42 -> 69.41571755 | F10: m³/dt oTS
B11: 6 | C11: = Gesamtgasproduktion | E11: =E9*E10 -> 2096767.714 | F11: m³
B12: –
B13: 7 | C13: BHKW Wirkungsgrad (elektrisch) | E13: 0.34
C14: BHKW Wirkungsgrad (thermisch) | E14: 0.4
B15: – | G15: Nebenrechnung für die Bestimmung der
B16: 8 | C16: Gesamtstromproduktion (3 × 6 × 7) | E16: =E11*E7*E13 -> 4251741.701 | F16: kWh/J | G16: Anschaffungskosten für das BHKW:
B17: 9 | C17: – Anlagenverbrauch an d. Stromprod. | E17: =E16*8% -> 340139.3361 | F17: kWh/J | G17: Rechnerische Leistung des BHKW bei einer
B18: 10 | C18: = Verfügbare Strommenge | E18: =E16-E17 -> 3911602.365 | F18: kWh/J | G18: Betriebsdauer von | I18: 8000 | J18: h/Jahr
B19: 11 | C19: Gesamtstromproduktion (Wärme) | E19: =(E18/L24*100)*E14 -> 4601885.135 | F19: kWh/J | G19: ="=> "&FIXED(E18,0)&" / "&FIXED(I18,0)&" =" -> => 3,911,602 / 8,000 = | I19: =E18/I18 -> 488.9502956 | J19: kW
B20: 12 | C20: – Anlagenverbrauch an Wärme | E20: =E19*K25 -> 2531036.824 | F20: kWh/J
B21: 13 | C21: = Verfügbare Wärmemenge | E21: =E19-E20 -> 2070848.311 | F21: kWh/J | H21: 150 | I21: 350 | J21: 500
B22: – | H22: 0.1099 | I22: 0.0932 | J22: 0.0838
B23: =B21+1 -> 14 | C23: Eigennutzung (Einsparung) | E23: 0 | F23: kWh/J
B24: =B23+1 -> 15 | C24: Strompreis | E24: 0.25 | F24: €/kWh | H24: Stromkennzahl | K24: 0.8 | L24: =E13*100 -> 34
B25: =B24+1 -> 16 | C25: Ertrag (Einsparung) (11 × 12) | E25: =E23*E24 -> 0 | F25: €/J | H25: Wärmebedarf | K25: 0.55
B26: – | H26: Technologie - Bonus | K26: nein
B27: =B25+1 -> 17 | C27: Verkauf (10 – 11) | E27: =E18-E23 -> 3911602.365 | F27: kWh/J
B28: =B27+1 -> 18 | C28: Strompreis | E28: =IF(I19<=150,H22,IF(I19<=500,((H21*H22+(I19-H21)*I22))/I19,((150*H22+I21*I22+(I19-500)*J22))/I19)) -> 0.09832322014 | F28: €/kWh
B29: =B28+1 -> 19 | C29: NawaRo - Bonus | E29: =IF(I19<500,0.06,0.04) -> 0.06 | F29: €/kWh
B30: =B29+1 -> 20 | C30: KWK - Bonus | E30: 0.02 | F30: €/kWh
B31: =B30+1 -> 21 | C31: Technologie - Bonus | E31: =IF(K26="ja",0.02,IF(K26="nein",0,"")) -> 0 | F31: €/kWh
B32: =B31+1 -> 22 | C32: Ertrag (Verkauf) | E32: =E27*E28+(E29*E27)+(E21*E30)+(E31*E27) -> 660714.4485 | F32: €/J
B33: –
B34: =B32+1 -> 23 | C34: Gesamtertrag Strom | E34: =E25+E32 -> 660714.4485 | F34: €/J
B50: Dungwert
B51: Bewertungsgrundlage: | E51: N | F51: P2O5 | G51: K2O
B52: € je kg Reinnährstoff" | E52: 0.58 | F52: 0.63 | G52: 0.35
B53: Nährstoff-Ausnutzung | E53: 0.6 | F53: 1 | G53: 1
B55: Bewertung (Dungwert):
B56: Substrat | E56: Nährstoffgehalte in FM | H56: Dungwert | I56: Substrat- | J56: Dungwert
E57: N | F57: P2O5 | G57: K2O | H57: je dt FM | I57: anfall | J57: insges.
E58: kg/dt | F58: kg/dt | G58: kg/dt | H58: € | I58: dt FM | J58: =Curr -> 0
B59: =Substrat!D15 -> 0 | H59: =SUMPRODUCT(E59:G59,$E$52:$G$52,$E$53:$G$53) -> 0 | I59: =Substrat!I15 -> 0 | J59: =I59*H59 -> 0
B60: =Substrat!D16 -> Silomais | E60: 0.43 | F60: 0.18 | G60: 0.51 | H60: 0.44154 | I60: =Substrat!I16 -> 111996 | J60: 49450.71384
B61: =Substrat!D17 -> Wiese-Silage | E61: 0.99 | F61: 0.34 | G61: 1.44 | H61: 1.06272 | I61: =Substrat!I17 -> 4623 | J61: 4912.95456
B62: =Substrat!D18 -> Grünroggen vor Mais | E62: 0.35 | F62: 0.11 | G62: 0.45 | H62: 0.3486 | I62: =Substrat!I18 -> 0 | J62: 0
B63: =Substrat!D19 -> Getreide - GPS | E63: 0.56 | F63: 0.23 | G63: 0.47 | H63: 0.50428 | I63: =Substrat!I19 -> 0 | J63: 0
B64: =Substrat!D20 -> 0 | H64: 0 | I64: =Substrat!I20 -> 0 | J64: 0
B65: =Substrat!D21 -> 0 | H65: 0 | I65: =Substrat!I21 -> 0 | J65: 0
B66: =Substrat!D22 -> 0 | H66: 0 | I66: =Substrat!I22 -> 0 | J66: 0
B67: =Substrat!D23 -> 0 | H67: 0 | I67: =Substrat!I23 -> 0 | J67: 0
B68: =Substrat!D24 -> 0 | H68: 0 | I68: =Substrat!I24 -> 0 | J68: 0
B69: Dungswert insgesamt | J69: =SUM(J59:J68) -> 54363.6684

Sheet Anlagekosten
C2: Anschaffungs-/ Herstellungskosten, Betriebskosten der Anlage
C4: Beschreibung | E4: Anschaffung (einmalig) | H4: Großrep. | I4: Lfd. Kost
E5: Anzahl | F5: Preis | G5: Kosten | H5: alle 3 J. | I5: jährlich | K5: Berechnung des Investitionsvolumen nach Durchschnittssätzen
F6: € | G6: € | H6: € | I6: €
C7: Fermenter | E7: 1 | F7: 40000 | G7: =F7*E7 -> 40000 | K7: durchschnittl. Kosten pro kWelek.
C8: Gärrückstandslager | E8: 1 | F8: 81720 | G8: 81720
C9: Elektroinstallationen | E9: 1 | F9: 4000 | G9: 4000 | K9: bis | L9: 200 | M9: kW | N9: 3500 | O9: €/kW elek.
C10: Heizungsinstallationen | E10: 1 | F10: 10000 | G10: 10000 | K10: bis | L10: 500 | M10: kW | N10: 2700 | O10: €/kW elek.
G11: 0 | K11: bis | L11: 1000 | M11: kW | N11: 2100 | O11: €/kW elek.
G12: 0
G13: 0
C14: Sonstiges | G14: 0 | K14: Investitionsvolumen: | O14: Anlagengröße:
C15: BHKW nach kW-Leistung + 10% | E15: 1 | F15: 155000 | G15: 155000 | K15: =IF(Ertrag!I19<=200,Ertrag!I19*N9,IF(Ertrag!I19<=500,Ertrag!I19*Anlagekosten!N10,Anlagekosten!N11*Ertrag!I19)) -> 1320165.798 | L15: €/Anlage | O15: =Ertrag!I19 -> 488.9502956 | P15: kWelek.
C16: Aufstellungsraum | E16: 1 | F16: 9000 | G16: 9000
C17: Anschlusskosten | E17: 1 | F17: 10000 | G17: 10000
C18: Baunebenkosten und Unvorhergesehenes | E18: 1 | F18: 5000 | G18: 5000
G19: 0
G20: 0
G21: 0
C22: Sonstiges | G22: 0
C23: Siloplatte (nach m³) | E23: 1800 | F23: 40 | G23: 72000
C24: Vor- und Anmischung | E24: 1 | F24: 24900 | G24: =F24*E24 -> 24900
G26: 0
G27: 0
C28: Sonstiges | G28: 0 | H28: 10000 | I28: 5000
B29: Insgesamt | G29: =SUM(G7:G28) -> 411620 | H29: =SUM(H7:H28) -> 10000 | I29: =SUM(I7:I28) -> 5000
B30: Zuschalg für Planung, Genehmigung | E30: 0.1 | G30: =G29*E30 -> 41162
B31: – Investitionszuschuss: | G31: =E31*G29 -> 0
B32: = Verbleibende Investitionskosten | G32: =G29+G30 -> 452782

Sheet Beschickung
D2: Befüllung, Entleerung und Kontrolle des Containers: variable Kosten und Arbeitszeitbedarf
D4: Einh. | E4: Verfahren | F4: für 1 × Befüll./Entleer. je Cont. | I4: Gesamt * | L4: * Erläuterung zu Gesamt: | AA4: Fixkost.* | AB4: ZA **)
F5: Umfang | G5: AKh | H5: € | I5: Umfang | J5: AKh | K5: € | L5: feste Substrate | O5: =Substrat!K25 -> 17459.82857 | P5: m³
D6: m³ | E6: Siloentnahme (Frontlader) | F6: 1 | G6: =0.04*F6 -> 0.04 | H6: =1.27456*F6 -> 1.27456 | I6: =F6*$O$5 -> 17459.82857 | J6: =0.04*I6 -> 698.3931429 | K6: =1.27456*I6 -> 22253.5991 | L6: flüssige Substrate | O6: =Substrat!K34 -> 1350 | P6: m³ | T6: 70 | AA6: =IF($A6=0,0,VLOOKUP($A6,ltPflArbGang,MKFKoZA,FALSE)*F6) -> 0 | AB6: =IF($A6=0,0,VLOOKUP($A6,ltPflArbGang,MKZA,FALSE)*F6) -> 0
D7: m³ | E7: Befüllung feste Substrate | F7: 1 | G7: =0.02*F7 -> 0.02 | H7: =0.65828*F7 -> 0.65828 | I7: =F7*$O$5 -> 17459.82857 | J7: =0.02*I7 -> 349.1965714 | K7: =0.65828*I7 -> 11493.45595 | L7: Gärrest | O7: =Substrat!M42/10 -> 10114.58805 | P7: m³ | T7: 3.5 | AA7: =IF($A7=0,0,VLOOKUP($A7,ltPflArbGang,MKFKoZA,FALSE)*#REF!) -> 0 | AB7: =IF($A7=0,0,VLOOKUP($A7,ltPflArbGang,MKZA,FALSE)*#REF!) -> 0
D8: m³ | E8: Befüllung flüssige Substrate | F8: 1 | G8: 0.008 | H8: =0.65828*F8 -> 0.65828 | I8: =O6 -> 1350 | J8: =0.02*I8 -> 27 | K8: =0.65828*I8 -> 888.678 | T8: 100 | AA8: =IF($A8=0,0,VLOOKUP($A8,ltPflArbGang,MKFKoZA,FALSE)*F7) -> 0 | AB8: =IF($A8=0,0,VLOOKUP($A8,ltPflArbGang,MKZA,FALSE)*F7) -> 0
J9: =0.02*I9 -> 0 | K9: =0.65828*I9 -> 0 | L9: Dichte Gärrest | O9: 1 | P9: kg/l | T9: 90 | AA9: 0 | AB9: 0
D10: m³ | E10: Substratausbringung | F10: 1 | G10: 0.06 | H10: 1.5 | I10: =O7 -> 10114.58805 | J10: =0.02*I10 -> 202.291761 | K10: =0.65828*I10 -> 6658.231022 | T10: 4.5 | AA10: 0 | AB10: 0
T11: 60 | AA11: 0 | AB11: 0
T12: 5 | AA12: 0 | AB12: 0
AA17: =IF($A17=0,0,VLOOKUP($A17,ltPflArbGang,MKFKoZA,FALSE)*F17) -> 0 | AB17: =IF($A17=0,0,VLOOKUP($A17,ltPflArbGang,MKZA,FALSE)*F17) -> 0
AA18: =IF($A18=0,0,VLOOKUP($A18,ltPflArbGang,MKFKoZA,FALSE)*F18) -> 0 | AB18: =IF($A18=0,0,VLOOKUP($A18,ltPflArbGang,MKZA,FALSE)*F18) -> 0
D19: Summe Eigenmechanisierung | F19: - | G19: =SUM(G6:G18) -> 0.128 | H19: =SUM(H6:H18) -> 4.09112 | I19: - | J19: =SUM(J6:J18) -> 1276.881475 | K19: =SUM(K6:K18) -> 41293.96408 | AA19: =SUM(AA6:AA18) -> 0 | AB19: =SUM(AB6:AB18) -> 0
I20: =F20*$O$5 -> 0 | J20: 0 | K20: 0
I22: 0 | J22: 0 | K22: 0
I23: 0 | J23: 0 | K23: 0
I24: 0 | J24: 0 | K24: 0
I25: 0 | J25: 0 | K25: 0
D26: Summe Sonstiges | F26: - | G26: =SUM(G20:G25) -> 0 | H26: =SUM(H20:H25) -> 0 | I26: - | J26: =SUM(J20:J25) -> 0 | K26: =SUM(K20:K25) -> 0
D27: Kontrolle BHKW / Container | F27: – | G27: – | H27: – | I27: – | J27: 182 | K27: 10
D28: Verwaltung | F28: – | G28: – | H28: – | I28: – | J28: 50 | K28: 50
F29: – | G29: – | H29: – | I29: –
F30: – | G30: – | H30: – | I30: –
D31: Insgesamt | F31: – | G31: =G19+G26 -> 0.128 | H31: =H19+H26 -> 4.09112 | I31: – | J31: =SUM(J26:J30,J19) -> 1508.881475 | K31: =SUM(K26:K30,K19) -> 41353.96408

Sheet Substrat
C1: Code der Bilanz | D1: 100 | E1: 101 | F1: 130 | G1: 130 | H1: 930 | I1: 930 | J1: 931 | K1: 931 | R1: 140 | S1: 500 | T1: 701 | U1: 702
C2: Spaltenindex aus ZusPV | D2: =IF(ISNA(HLOOKUP(D$1,ltZusBilanz,2,FALSE))=TRUE,0,HLOOKUP(D$1,ltZusBilanz,2,FALSE)) -> 
C3: Bezeichnung | D3: =IF(ISNA(VLOOKUP(D$1,ltBilanz,2,FALSE))=TRUE,"",VLOOKUP(D$1,ltBilanz,2,FALSE)) -> 
C4: Einheit | D4: =IF(ISNA(VLOOKUP(D$1,ltBilanz,3,FALSE))=TRUE,"",VLOOKUP(D$1,ltBilanz,3,FALSE)) -> 
C8: Substraterzeugung
C10: Produktionsverfahren | F10: Var. Kosten | H10: Substraterzeugung | R10: Bedarf an
F11: (ggf. Prämien berücks.) | H11: Substratmenge | J11: Substratvolumen | L11: Gärrest | N11: oTS | P11: Biogas | R11: Umlauf- | S11: Arbeit | T11: Acker- | U11: Grün-
C12: Aus- | D12: Bezeichnung | E12: Ein- | F12: je | G12: ins- | H12: je | I12: ins- | J12: je | K12: ins- | L12: oTS | M12: ins- | N12: je | O12: ins- | P12: m³ | Q12: m³ | R12: vermög. | T12: land | U12: land
C13: deh- | E13: heit | F13: Einheit | G13: gesamt | H13: Einheit | I13: gesamt | J13: Einheit | K13: gesamt | L13: Abbau | M13: gesamt | N13: Einheit | O13: gesamt | P13: / dt oTS | R13: insg. | S13: insg. | T13: insg. | U13: insg.
C14: nung | F14: € | G14: € | H14: dt | I14: dt | J14: m³ | K14: m³ | L14: dt | M14: dt | N14: dt | O14: dt | R14: € | S14: h | T14: ha | U14: ha
C16: 248.88 | D16: Silomais | E16: ha | F16: ='Silomais '!M43 -> 851.5465 | G16: =F16*C16 -> 211932.8929 | H16: =Datentabelle!K5 -> 450 | I16: =H16*C16 -> 111996 | J16: =Datentabelle!L5 -> 67.5 | K16: =J16*C16 -> 16799.4 | L16: =Datentabelle!M5 -> 389.25 | M16: =C16*L16 -> 96876.54 | N16: =Datentabelle!H5 -> 116.64 | O16: =N16*Substrat!C16 -> 29029.3632 | P16: =Datentabelle!I5 -> 70 | Q16: =O16*P16 -> 2032055.424 | R16: =C16*F16 -> 211932.8929 | S16: =Datentabelle!E9*C16 -> 2488.8 | T16: =C16 -> 248.88
C17: 15.41 | D17: =Wiese_Silage!K3 -> Wiese-Silage | E17: ha | F17: =Wiese_Silage!M43 -> 402.2 | G17: =F17*C17 -> 6197.902 | H17: =Datentabelle!K9 -> 300 | I17: =H17*C17 -> 4623 | J17: =Datentabelle!L9 -> 42.85714286 | K17: =J17*C17 -> 660.4285714 | L17: =Datentabelle!M9 -> 277.05 | M17: =C17*L17 -> 4269.3405 | N17: =Datentabelle!H9 -> 41.31 | O17: =N17*C17 -> 636.5871 | P17: =Datentabelle!I9 -> 55 | Q17: =O17*P17 -> 35012.2905 | R17: =Wiese_Silage!M46*C17 -> 3098.951 | S17: =Wiese_Silage!L65*C17 -> 154.1 | U17: =C17 -> 15.41
D18: Grünroggen vor Mais | E18: ha | F18: =+Grünroggen!M43 -> 672.9146429 | G18: =F19*C18 -> 0 | H18: =+Grünroggen!K7 -> 250 | I18: =H18*C18 -> 0 | J18: =Datentabelle!L6 -> 32.14285714 | K18: =J18*C18 -> 0 | L18: =Datentabelle!M6 -> 225.25 | M18: =C18*L18 -> 0 | N18: =+Datentabelle!H6 -> 44.55 | O18: =N18*C18 -> 0 | P18: =+Datentabelle!I6 -> 60 | Q18: =O18*P18 -> 0 | R18: =F18*C18 -> 0 | S18: =C18*Datentabelle!E6 -> 0
D19: Getreide - GPS | E19: ha | F19: ='Getreide - GPS '!M43 -> 810.233 | G19: =F19*C19 -> 0 | H19: =+Datentabelle!K7 -> 350 | I19: =H19*C19 -> 0 | J19: =Datentabelle!L7 -> 52.5 | K19: =J19*C19 -> 0 | L19: =Datentabelle!M7 -> 294.875 | M19: =C19*L19 -> 0 | N19: =+Datentabelle!H7 -> 98.1225 | O19: =N19*C19 -> 0 | P19: =+Datentabelle!I7 -> 55 | Q19: =O19*P19 -> 0 | R19: =F19*C19 -> 0 | S19: =C19*Datentabelle!E7 -> 0 | T19: =C19 -> 0
C25: Summe Acker-/Grünland | E25: Tier | G25: =SUM(G15:G24) -> 218130.7949 | I25: =SUM(I15:I24) -> 116619 | J25: – | K25: =SUM(K15:K24) -> 17459.82857 | M25: =SUM(M15:M24) -> 101145.8805 | O25: =SUM(O15:O24) -> 29665.9503 | Q25: =SUM(Q15:Q24) -> 2067067.715 | R25: =SUM(R15:R24) -> 215031.8439 | S25: =SUM(S15:S24) -> 2642.9 | T25: =SUM(T15:T24) -> 248.88 | U25: =SUM(U15:U24) -> 15.41
F26: ––- | G26: ––-
E27: Tier | F27: ––- | G27: ––-
E28: Platz | F28: ––- | G28: ––-
F29: ––- | G29: ––-
D30: Gülle Ferkel | E30: Platz | F30: ––- | G30: ––- | H30: =Datentabelle!K14 -> 10 | I30: =H30*$C30 -> 0 | J30: =Datentabelle!L14 -> 1 | K30: =J30*$C30 -> 0 | L30: =Datentabelle!M14 -> 9.8 | N30: =+Datentabelle!H14 -> 0.4 | O30: =C30*N30 -> 0 | P30: =+Datentabelle!I14 -> 45 | Q30: =O30*P30 -> 0
D31: Gülle Zuchtsau | E31: Platz | F31: ––- | G31: ––- | H31: =+Datentabelle!K15 -> 79 | I31: =H31*$C31 -> 0 | J31: =Datentabelle!L15 -> 7.9 | K31: 0 | L31: =Datentabelle!M15 -> 77.42 | N31: =Datentabelle!H15 -> 3.16 | O31: =C31*N31 -> 0 | P31: =Datentabelle!I15 -> 45 | Q31: =O31*P31 -> 0
C32: 450 | D32: Gülle Mastsau | E32: Platz | F32: ––- | G32: ––- | H32: =+Datentabelle!K16 -> 30 | I32: =H32*$C32 -> 13500 | J32: =Datentabelle!L16 -> 3 | K32: 1350 | L32: =Datentabelle!M16 -> 29.4 | N32: =Datentabelle!H16 -> 1.2 | O32: =C32*N32 -> 540 | P32: =Datentabelle!I16 -> 55 | Q32: =O32*P32 -> 29700
D33: Gülle Milchkuh | E33: Tier | F33: ––- | G33: ––- | H33: =+Datentabelle!K11 -> 247 | I33: =H33*$C33 -> 0 | J33: =Datentabelle!L11 -> 24.7 | K33: 0 | L33: =Datentabelle!M11 -> 239.6 | M33: =C33*L33 -> 0 | N33: =Datentabelle!H11 -> 15.355 | O33: =C33*N33 -> 0 | P33: =Datentabelle!I11 -> 40 | Q33: =O33*P33 -> 0
C34: Summe Tierhaltung | F34: ––- | G34: ––- | I34: =SUM(I26:I33) -> 13500 | K34: =SUM(K26:K33) -> 1350 | M34: =SUM(M26:M33) -> 0 | O34: =SUM(O26:O33) -> 540 | Q34: =SUM(Q26:Q33) -> 29700
G35: =F35*$C35 -> 0 | I35: =H35*$C35 -> 0 | K35: 0
G36: 0 | I36: 0 | K36: 0
G37: 0 | I37: 0 | K37: 0
G38: 0 | I38: 0 | K38: 0
G39: 0 | I39: 0 | K39: 0
G40: 0 | I40: 0 | K40: 0
C41: Summe Zukauf/Sonstiges | E41: Tier | G41: =SUM(G35:G40) -> 0 | I41: =SUM(I35:I40) -> 0 | K41: =SUM(K35:K40) -> 0 | M41: =SUM(M35:M40) -> 0 | R41: =SUM(R35:R40) -> 0 | S41: =SUM(S35:S40) -> 0 | T41: =SUM(T35:T40) -> 0 | U41: =SUM(U35:U40) -> 0
C42: Summe Insgesamt | F42: ––- | G42: =G25+G34+G41 -> 218130.7949 | I42: =I25+I34+I41 -> 130119 | K42: =K25+K34+K41 -> 18809.82857 | L42: =L25+L34+L41 -> 0 | M42: =M25+M34+M41 -> 101145.8805 | N42: =N25+N34+N41 -> 0 | O42: =O25+O34+O41 -> 30205.9503 | Q42: =Q25+Q34+Q41 -> 2096767.715 | R42: =R25+R34+R41 -> 215031.8439 | S42: =S25+S34+S41 -> 2642.9 | T42: =T25+T34+T41 -> 248.88 | U42: =U25+U34+U41 -> 15.41

Sheet Datentabelle
C2: var.Kosten | D2: UVV | E2: Arbeitszeitbedarf | F2: Menge TS | G2: oTS - Gehalt | H2: Erntemenge oTS | I2: Gasausbeute | J2: Gasausbeute m³ | K2: Substratmenge | L2: Substratvolumen | M2: Substratmenge Gärrest
C3: €/ha | D3: €/ha | E3: h/ha | F3: dt | G3: % | H3: dt/ha | I3: m³/dt oTS | J3: m³ | K3: dt | L3: m³ | M3: dt
A4: Fläche | B4: Ackerland
B5: Silomais | C5: ='Silomais '!M43 -> 851.5465 | D5: ='Silomais '!M46 -> 425.77325 | E5: ='Silomais '!L64 -> 9.08 | F5: ='Silomais '!M8 -> 121.5 | G5: =Cosubstrate!$C$45 -> 0.96 | H5: =F5*G5 -> 116.64 | I5: =Cosubstrate!$D$45*100 -> 70 | J5: =H5*I5 -> 8164.8 | K5: ='Silomais '!K7 -> 450 | L5: ='Silomais '!M48 -> 67.5 | M5: =K5-(F5*Cosubstrate!K45) -> 389.25
B6: Grünroggen | C6: =Grünroggen!M43 -> 672.9146429 | D6: =Grünroggen!M46 -> 336.4573214 | E6: =Grünroggen!L64 -> 8.98 | F6: =Grünroggen!M8 -> 49.5 | G6: 0.9 | H6: =F6*G6 -> 44.55 | I6: 60 | J6: =H6*I6 -> 2673 | K6: =Grünroggen!K7 -> 250 | L6: =Grünroggen!M48 -> 32.14285714 | M6: =K6-(F6*Cosubstrate!K28) -> 225.25
B7: Getreide - GPS | C7: =+'Getreide - GPS '!M43 -> 810.233 | D7: ='Getreide - GPS '!M46 -> 405.1165 | E7: ='Getreide - GPS '!L64 -> 9.08 | F7: ='Getreide - GPS '!M8 -> 110.25 | G7: 0.89 | H7: 98.1225 | I7: 55 | J7: 5396.7375 | K7: ='Getreide - GPS '!K7 -> 350 | L7: =+'Getreide - GPS '!M48 -> 52.5 | M7: =K7-(F7*Cosubstrate!K23) -> 294.875
B8: Grünland
B9: Grassilage | C9: =Wiese_Silage!M43 -> 402.2 | D9: =Wiese_Silage!M46 -> 201.1 | E9: =Wiese_Silage!L65 -> 10 | F9: =Wiese_Silage!M8 -> 45.9 | G9: =Cosubstrate!$C$26 -> 0.9 | H9: 41.31 | I9: =Cosubstrate!$D$26*100 -> 55 | J9: 2272.05 | K9: =Wiese_Silage!K7 -> 300 | L9: =Wiese_Silage!M48 -> 42.85714286 | M9: =K9-(F9*Cosubstrate!K26) -> 277.05
A10: Tierhaltung | B10: Rinder
B11: Milchkuh (flüssig) | F11: 18.5 | G11: 0.83 | H11: 15.355 | I11: 40 | J11: 614.2 | K11: =L11*10 -> 247 | L11: 24.7 | M11: =K11-(F11*TierischeSubstrate!M16) -> 239.6
B13: Schweine
B14: Ferkel | F14: 0.5 | G14: 0.8 | H14: 0.4 | I14: 45 | J14: 18 | K14: =L14*10 -> 10 | L14: 1 | M14: =K14-(F14*TierischeSubstrate!M24) -> 9.8
B15: Zuchtsauen | F15: 3.95 | G15: 0.8 | H15: 3.16 | I15: 45 | J15: 142.2 | K15: =L15*10 -> 79 | L15: 7.9 | M15: =K15-(F15*TierischeSubstrate!M25) -> 77.42
B16: Mastschweine (flüssig) | F16: 1.5 | G16: 0.8 | H16: =F16*G16 -> 1.2 | I16: 55 | J16: 66 | K16: =L16*10 -> 30 | L16: 3 | M16: =K16-(F16*TierischeSubstrate!M26) -> 29.4

Sheet TierischeSubstrate
B1: 7. Tierische Substrate:
B3: Tierische Reststoffe:
B4: Substrat: | C4: TS | D4: oTS | E4: Anfall | F4: Anfall | G4: Gasausbeute | H4: Raum-Gew. | I4: Gasausbeute | J4: Gasausbeute | K4: Methangehalt | L4: Verweilzeit | M4: TS-Abbau
C5: % | D5: % | E5: m³/GV | F5: dt/GV | G5: m³/kg oTS | H5: dt/m³ | I5: m³/GV *d | J5: m³ CH4/kg oTS | K5: % | L5: Tage | M5: %
B6: Junghennen (Käfig), Gülle | C6: 0.22 | D6: 0.76 | E6: 19.2 | F6: 180 | G6: 0.48 | H6: 9.4 | I6: =F6/365*100*C6*D6*G6 -> 3.957830137 | J6: 0.3 | K6: =J6/G6 -> 0.625 | L6: 25 | M6: 0.4
B7: Legehennen (Käfig), Gülle | C7: 0.22 | D7: 0.76 | E7: 18 | F7: 161 | G7: 0.48 | H7: 8.9 | I7: 3.540059178 | J7: 0.3 | K7: =J7/G7 -> 0.625 | L7: 25 | M7: 0.4
B8: Broiler (Bodenh.), Mist | C8: 0.6 | D8: 0.75 | E8: 9.6 | F8: 78 | G8: 0.55 | H8: 8.1 | I8: 5.289041096 | J8: 0.34 | K8: 0.6181818182 | L8: 25 | M8: 0.4
B9: Mastputen (Bodenh.), Mist | C9: 0.6 | D9: 0.75 | E9: 14.3 | F9: 114 | G9: 0.55 | H9: 7.9 | I9: 7.730136986 | J9: 0.34 | K9: 0.6181818182 | L9: 25 | M9: 0.4
B10: Junghennen (Bodenh.), Mist | C10: 0.6 | D10: 0.75 | E10: 9 | F10: 66 | G10: 0.55 | H10: 7.3 | I10: 4.475342466 | J10: 0.34 | K10: 0.6181818182 | L10: 25 | M10: 0.4
B11: Legehennen (Bodenh.), Mist | C11: 0.6 | D11: 0.75 | E11: 8.4 | F11: 65 | G11: 0.55 | H11: 7.7 | I11: 4.407534247 | J11: 0.34 | K11: 0.6181818182 | L11: 25 | M11: 0.4
B13: Pferdemist (unter 3 Jahre) | C13: 0.28 | D13: 0.75 | E13: 8 | F13: 60 | G13: 0.58 | H13: 7.5 | I13: =F13/365*100*C13*D13*G13 -> 2.002191781 | J13: 0.36 | K13: 0.6206896552 | L13: 25 | M13: 0.4
B14: Pferdemist (über 3 Jahre) | C14: 0.28 | D14: 0.75 | E14: 11 | F14: 82.5 | G14: 0.58 | H14: 7.5 | I14: =F14/365*100*C14*D14*G14 -> 2.753013699 | J14: 0.36 | K14: 0.6206896552 | L14: 25 | M14: 0.4
B16: Milchvieh-Spalten-Gülle | C16: 0.075 | D16: 0.83 | E16: 24.6 | F16: 216 | G16: 0.4 | H16: 9.8 | I16: =F16/365*100*C16*D16*G16 -> 1.473534247 | J16: 0.23 | K16: 0.575 | L16: 25 | M16: 0.4
B17: Milchvieh-Tretmist | C17: 0.25 | D17: 0.83 | E17: 15 | F17: 120 | G17: 0.42 | H17: 8 | I17: =F17/365*100*C17*D17*G17 -> 2.865205479 | J17: 0.25 | K17: 0.5952380952 | L17: 25 | M17: 0.4
B18: Mastbulle Gülle | C18: 0.075 | D18: 0.83 | E18: 16 | F18: 160 | G18: 0.4 | H18: 10 | I18: =F18/365*100*C18*D18*G18 -> 1.091506849 | J18: 0.24 | K18: 0.6 | L18: 25 | M18: 0.4
B20: Kälber bis 4 Monate-Mist | C20: 0.25 | D20: 0.83 | E20: 12 | F20: 90 | G20: 0.4 | H20: 7.5 | I20: =F20/365*100*C20*D20*G20 -> 2.046575342 | J20: 0.25 | K20: 0.625 | L20: 25 | M20: 0.4
B22: Schafmist | C22: 0.28 | D22: 0.83 | E22: 6.25 | F22: 50 | G22: 0.73 | H22: 8 | I22: =F22/365*100*C22*D22*G22 -> 2.324 | J22: 0.45 | K22: 0.6164383562 | L22: 25 | M22: 0.4
B24: Zuchtsau m. Ferkel - Gülle | C24: 0.065 | D24: 0.8 | E24: 24.7 | F24: 216 | G24: 0.45 | H24: 9.8 | I24: =F24/365*100*C24*D24*G24 -> 1.384767123 | J24: 0.3 | K24: 0.6666666667 | L24: 25 | M24: 0.4
B25: Mastsau - Festmist | C25: 0.23 | D25: 0.83 | E25: 11.25 | F25: 90 | G25: 0.62 | H25: 8 | I25: =F25/365*100*C25*D25*G25 -> 2.918416438 | J25: 0.4 | K25: 0.6451612903 | L25: 25 | M25: 0.4
B26: Mastsau - Gülle | C26: 0.061 | D26: 0.8 | E26: 15 | F26: 181 | G26: 0.55 | H26: 9.8 | I26: =F26/365*100*C26*D26*G26 -> 1.330969863 | J26: 0.35 | K26: 0.6363636364 | L26: 25 | M26: 0.4
A27: Spalte: | B27: 1 | C27: 2 | D27: 3 | E27: 4 | F27: 5 | G27: 6 | H27: 7 | I27: 8 | J27: 9 | K27: 10 | L27: 11 | M27: 12

Sheet Cosubstrate
A1: 6. Co-Substrate: | L1: Düngerpreise:
A2: Zusammenstellung von Gärsubstraten: | L2: 0.65 | M2: 0.64 | N2: 0.32
A3: 1 | B3: 2 | C3: 3 | D3: 4 | E3: 5 | F3: 6 | G3: 7 | H3: 8 | I3: 9 | J3: 10 | K3: 11 | L3: 12 | M3: 13 | N3: 14 | O3: 15
A4: Substrat: | B4: TS | C4: oTS | D4: Gasausbeute | E4: R-Gew. | F4: Prämien | G4: variable | H4: Methangehalt | I4: Methangehalt | J4: Verweilzeit | K4: TS-Abbau | L4: N | M4: P2O5 | N4: K2O | O4: Düngerwert:
B5: % | C5: % | D5: m³/kg oTS | E5: dt/m³ | G5: Kosten | H5: m³ CH4/kg oTS | I5: % | J5: Tage | K5: % | L5: kg/ha | M5: kg/ha | N5: kg/ha | O5: €/ha
A6: Altbrot | B6: 0.9 | C6: 0.97 | D6: 0.8 | E6: 5 | F6: 0 | G6: 0 | H6: 0.6 | I6: =H6/D6 -> 0.75 | J6: 20 | K6: 0.7
A7: Apfelschlempe | B7: 0.03 | C7: 0.95 | D7: 0.53 | E7: 9 | F7: 0 | G7: 0 | H7: 0.33 | I7: =H7/D7 -> 0.6226415094 | J7: 20 | K7: 0.5
A8: Apfeltrester | B8: 0.25 | C8: 0.86 | D8: 0.7 | E8: 7.5 | F8: 0 | G8: 0 | H8: 0.33 | I8: 0.4714285714 | J8: 20 | K8: 0.5
A9: Biertreber | B9: 0.25 | C9: 0.66 | D9: 0.7 | E9: 7.5 | F9: 0 | G9: 0 | H9: 0.38 | I9: 0.5428571429 | J9: 20 | K9: 0.5
A10: Bioabfall | B10: 0.675 | C10: 0.5 | D10: 0.65 | E10: 4 | F10: 0 | G10: 0 | H10: 0.4 | I10: 0.6153846154 | J10: 20 | K10: 0.5
A11: CCM-Fremd | B11: 0.88 | C11: 0.9 | D11: 0.7 | E11: 6.5 | F11: 0 | G11: 0 | H11: 0.37 | I11: 0.5285714286 | J11: 20 | K11: 0.7
A12: CCM-Eigen | B12: 0.88 | C12: 0.9 | D12: 0.7 | E12: 6.5 | F12: 474 | G12: -700 | H12: 0.37 | I12: 0.5285714286 | J12: 20 | K12: 0.7 | L12: 171 | M12: 33.4 | N12: 158.4 | O12: =IF(L12="","",$L$2*L12+$M$2*M12+$N$2*N12) -> 183.214
A13: Fettabscheiderrückstände | B13: 0.5 | C13: 0.96 | D13: 1 | E13: 7 | F13: 0 | G13: 250 | H13: 0.7 | I13: 0.7 | J13: 20 | K13: 0.6 | O13: =IF(L13="","",$L$2*L13+$M$2*M13+$N$2*N13) -> 
A14: Flotatschlamm | B14: 0.18 | C14: 0.92 | D14: 1 | E14: 8 | F14: 0 | G14: 0 | H14: 0.7 | I14: 0.7 | J14: 20 | K14: 0.6
A15: Futterrübenmus-Fremd | B15: 0.16 | C15: 0.86 | D15: 0.7 | E15: 12 | F15: 0 | G15: 0 | H15: 0.364 | I15: 0.52 | J15: 20 | K15: 0.6
A16: Futterrübenmus-Eigen | B16: 0.16 | C16: 0.86 | D16: 0.7 | E16: 12 | F16: 353 | G16: -1900 | H16: 0.364 | I16: 0.52 | J16: 20 | K16: 0.6 | L16: 150 | M16: 90 | N16: 450 | O16: =IF(L16="","",$L$2*L16+$M$2*M16+$N$2*N16) -> 299.1
A17: Gemüseabfälle-Fremd | B17: 0.15 | C17: 0.84 | D17: 0.6 | E17: 7 | F17: 0 | G17: 0 | H17: 0.4 | I17: 0.6666666667 | J17: 20 | K17: 0.5
A18: Gemüseabfälle-Eigen | B18: 0.15 | C18: 0.84 | D18: 0.6 | E18: 7 | F18: 0 | G18: 0 | H18: 0.4 | I18: 0.6666666667 | J18: 20 | K18: 0.5
A19: Getreide-Fremd | B19: 0.88 | C19: 0.98 | D19: 0.72 | E19: 6.5 | F19: 0 | G19: -8 | H19: 0.38 | I19: 0.5277777778 | J19: 20 | K19: 0.7
A20: Getreide-Eigen | B20: 0.88 | C20: 0.98 | D20: 0.72 | E20: 6.5 | F20: 348 | G20: -1000 | H20: 0.38 | I20: 0.5277777778 | J20: 20 | K20: 0.7 | L20: 175 | M20: 56 | N20: 35 | O20: 160.79
A21: Getreidestroh-Fremd | B21: 0.87 | C21: 0.93 | D21: 0.4 | E21: 0.7 | F21: 0 | G21: 0 | H21: 0.21 | I21: 0.52 | J21: 40 | K21: 0.5
A22: Getreidestroh-Eigen | B22: 0.87 | C22: 0.93 | D22: 0.4 | E22: 0.7 | F22: 0 | G22: 0 | H22: 0.21 | I22: 0.52 | J22: 40 | K22: 0.5
A23: GPS-Silage-Fremd | B23: 0.38 | C23: 0.89 | D23: 0.55 | E23: 5.5 | F23: 0 | G23: 0 | H23: 0.3 | I23: 0.53 | J23: 35 | K23: 0.5
A24: GPS-Silage-Eigen | B24: 0.38 | C24: 0.89 | D24: 0.55 | E24: 5.5 | F24: 348 | G24: -1000 | H24: 0.3 | I24: 0.53 | J24: 35 | K24: 0.5 | L24: 175 | M24: 56 | N24: 35 | O24: 160.79
A25: Grassilage-Fremd | B25: 0.38 | C25: 0.9 | D25: 0.55 | E25: 6.5 | F25: 0 | G25: 0 | H25: 0.35 | I25: 0.55 | J25: 40 | K25: 0.5
A26: Grassilage-Eigen | B26: 0.38 | C26: 0.9 | D26: 0.55 | E26: 6.5 | F26: 0 | G26: -800 | H26: 0.35 | I26: 0.55 | J26: 40 | K26: 0.5 | L26: 168 | M26: 56 | N26: 227 | O26: 217.68
A27: Grünroggen-Fremd | B27: 0.4 | C27: 0.9 | D27: 0.6 | E27: 6.5 | F27: 0 | G27: 0 | H27: 0.32 | I27: 0.5333333333 | J27: 35 | K27: 0.5
A28: Grünroggen-Eigen | B28: 0.38 | C28: 0.9 | D28: 0.6 | E28: 6.5 | F28: 348 | G28: -700 | H28: 0.32 | I28: 0.5333333333 | J28: 35 | K28: 0.5 | L28: 175 | M28: 56 | N28: 35 | O28: 160.79
A29: Grünschnitt | B29: 0.18 | C29: 0.9 | D29: 0.6 | E29: 4 | F29: 0 | G29: 0 | H29: 0.42 | I29: 0.55 | J29: 35 | K29: 0.5
A30: Kartoffelkraut | B30: 0.25 | C30: 0.79 | D30: 0.65 | E30: 0.8 | F30: 0 | G30: 0 | H30: 0.45 | I30: =H30/D30 -> 0.6923076923 | J30: 40 | K30: 0.5
A31: Kartoffelmus-Fremd | B31: 0.22 | C31: 0.9 | D31: 0.73 | E31: 7 | F31: 0 | G31: 0 | H31: 0.43 | I31: 0.5890410959 | J31: 20 | K31: 0.6
A32: Kartoffelmus-Eigen | B32: 0.22 | C32: 0.9 | D32: 0.73 | E32: 7 | F32: 353 | G32: -1900 | H32: 0.43 | I32: 0.5890410959 | J32: 20 | K32: 0.6 | L32: 189 | M32: 68 | N32: 280 | O32: 255.97
A33: Kartoffelschälreste | B33: 0.11 | C33: 0.94 | D33: 0.7 | E33: 7 | F33: 0 | G33: 0 | H33: 0.42 | I33: 0.6 | J33: 25 | K33: 0.6
A34: Kartoffelschlempe | B34: 0.14 | C34: 0.9 | D34: 0.45 | E34: 8 | F34: 0 | G34: 0 | H34: 0.3 | I34: 0.6666666667 | J34: 20 | K34: 0.6
A35: Klärschlamm | B35: 0.04 | C35: 0.7 | D35: 0.5 | E35: 8 | F35: 0 | G35: 0 | H35: 0.3 | I35: 0.6 | J35: 30 | K35: 0.5
A36: Kleegrassilage-Fremd | B36: 0.35 | C36: 0.93 | D36: 0.54 | E36: 5.5 | F36: 0 | G36: 0 | H36: 0.3 | I36: 0.5555555556 | J36: 35 | K36: 0.5
A37: Kleegrassilage-Eigen | B37: 0.35 | C37: 0.93 | D37: 0.54 | E37: 5.5 | F37: 353 | G37: -800 | H37: 0.3 | I37: 0.5555555556 | J37: 35 | K37: 0.5 | L37: 212 | M37: 37.97 | N37: 306 | O37: 260.0208
A38: Labmolke | B38: 0.056 | C38: 0.922 | D38: 0.56 | E38: 10 | F38: 0 | G38: 0 | H38: 0.3 | I38: 0.5357142857 | J38: 10 | K38: 0.5
A39: Mageninhalt Schwein | B39: 0.13 | C39: 0.82 | D39: 0.5 | E39: 8 | F39: 0 | G39: 0 | H39: 0.3 | I39: 0.6 | J39: 40 | K39: 0.5
A40: Magermilch | B40: 0.086 | C40: 0.918 | D40: 0.6 | E40: 10 | F40: 0 | G40: 0 | H40: 0.35 | I40: 0.5833333333 | J40: 10 | K40: 0.5
A41: Mais - Körnermais-Fremd | B41: 0.88 | C41: 0.98 | D41: 0.78 | E41: 7 | F41: 0 | G41: 0 | H41: 0.43 | I41: 0.53 | J41: 20 | K41: 0.7
A42: Mais - Körnermais-Eigen | B42: 0.88 | C42: 0.98 | D42: 0.78 | E42: 7 | F42: 300 | G42: -800 | H42: 0.43 | I42: 0.53 | J42: 20 | K42: 0.7 | L42: 171 | M42: 33.4 | N42: 158.4 | O42: 183.214
A43: Maissilage-Fremd | B43: 0.33 | C43: 0.96 | D43: 0.7 | E43: 6.5 | F43: 0 | G43: 0 | H43: 0.4 | I43: 0.53 | J43: 40 | K43: 0.5
A44: Maissilage-Stilllegung | B44: 0.33 | C44: 0.96 | D44: 0.7 | E44: 6.5 | F44: 353 | G44: -1100 | H44: 0.4 | I44: 0.53 | J44: 40 | K44: 0.5
A45: Maissilage-Eigen | B45: 0.33 | C45: 0.96 | D45: 0.7 | E45: 6.5 | F45: 474 | G45: -1100 | H45: 0.4 | I45: 0.53 | J45: 40 | K45: 0.5 | L45: 171 | M45: 33.4 | N45: 158.4 | O45: 183.214
A46: Malzkeime | B46: 0.92 | C46: 0.93 | D46: 0.6 | E46: 6 | F46: 0 | G46: 0 | H46: 0.35 | I46: 0.5833333333 | J46: 20 | K46: 0.6
A47: Melasse | B47: 0.77 | C47: 0.9 | D47: 0.72 | E47: 8 | F47: 0 | G47: 0 | H47: 0.39 | I47: 0.5416666667 | J47: 20 | K47: 0.6
A48: Obsttrester | B48: 0.18 | C48: 0.93 | D48: 0.6 | E48: 8 | F48: 0 | G48: 0 | H48: 0.38 | I48: 0.6333333333 | J48: 20 | K48: 0.5
A49: Panseninhalt (abgepreßt) | B49: 0.28 | C49: 0.9 | D49: 0.75 | E49: 7 | F49: 0 | G49: 0 | H49: 0.5 | I49: 0.6666666667 | J49: 40 | K49: 0.5
A50: Panseninhalt (unbehandelt) | B50: 0.15 | C50: 0.84 | D50: 0.5 | E50: 6.5 | F50: 0 | G50: 0 | H50: 0.3 | I50: 0.6 | J50: 40 | K50: 0.5
A51: Raps-Fremd | B51: 0.14 | C51: 0.85 | D51: 0.7 | E51: 7 | F51: 348 | G51: -600 | H51: 0.4 | I51: 0.5714285714 | J51: 30 | K51: 0.5
A52: Raps-Eigen | B52: 0.14 | C52: 0.85 | D52: 0.7 | E52: 7 | F52: 348 | G52: -700 | H52: 0.4 | I52: 0.5714285714 | J52: 30 | K52: 0.5 | L52: 396 | M52: 72 | N52: 150 | O52: 351.48
A53: Raps-Extraktionsschrot | B53: 0.65 | C53: 0.93 | D53: 0.6 | E53: 6 | F53: 0 | G53: 0 | H53: 0.37 | I53: 0.6166666667 | J53: 20 | K53: 0.5
A54: Rapspreßkuchen | B54: 0.91 | C54: 0.94 | D54: 0.722 | E54: 7 | F54: 0 | G54: 0 | H54: 0.45 | I54: 0.6232686981 | J54: 20 | K54: 0.5
A55: Rübenblatt | B55: 0.17 | C55: 0.79 | D55: 0.63 | E55: 5 | F55: 0 | G55: 0 | H55: 0.36 | I55: 0.5714285714 | J55: 30 | K55: 0.5
A56: Sudangrassilage-Fremd | B56: 0.35 | C56: 0.93 | D56: 0.7 | E56: 6.5 | F56: 0 | G56: 0 | H56: 0.4 | I56: 0.5714285714 | J56: 40 | K56: 0.5
A57: Sudangrassilage-Eigen | B57: 0.35 | C57: 0.93 | D57: 0.7 | E57: 6.5 | F57: 353 | G57: -700 | H57: 0.4 | I57: 0.5714285714 | J57: 40 | K57: 0.5
A58: Weidelgrassilage-Fremd | B58: 0.38 | C58: 0.87 | D58: 0.57 | E58: 6.5 | F58: 0 | G58: 0 | H58: 0.3 | I58: 0.5263157895 | J58: 40 | K58: 0.5
A59: Weidelgrassilage-Eigen | B59: 0.38 | C59: 0.87 | D59: 0.57 | E59: 6.5 | F59: 353 | G59: -700 | H59: 0.3 | I59: 0.5263157895 | J59: 40 | K59: 0.5 | L59: 192 | M59: 64 | N59: 260 | O59: 248.96
A60: Gelatine | B60: 0.9 | C60: 0.97 | D60: 0.416 | E60: 6 | F60: 0 | G60: 5 | H60: =D60*I60 -> 0.2496 | I60: 0.6 | J60: 15 | K60: 0.5
A61: Bruchkorn | B61: 0.88 | C61: 0.97 | D61: 0.72 | E61: 6.5 | F61: 0 | G61: -4.5 | H61: 0.38 | I61: =H61/D61 -> 0.5277777778 | J61: 20 | K61: 0.7 | O61: =IF(L61="","",$L$2*L61+$M$2*M61+$N$2*N61) -> 
O77: =IF(L77="","",$L$2*L77+$M$2*M77+$N$2*N77) -> 
O141: =IF(L141="","",$L$2*L141+$M$2*M141+$N$2*N141) -> 
O205: =IF(L205="","",$L$2*L205+$M$2*M205+$N$2*N205) -> 
O269: =IF(L269="","",$L$2*L269+$M$2*M269+$N$2*N269) -> 
O333: =IF(L333="","",$L$2*L333+$M$2*M333+$N$2*N333) -> 
O397: =IF(L397="","",$L$2*L397+$M$2*M397+$N$2*N397) -> 
O461: =IF(L461="","",$L$2*L461+$M$2*M461+$N$2*N461) -> 
O525: =IF(L525="","",$L$2*L525+$M$2*M525+$N$2*N525) -> 
O589: =IF(L589="","",$L$2*L589+$M$2*M589+$N$2*N589) -> 
O653: =IF(L653="","",$L$2*L653+$M$2*M653+$N$2*N653) -> 
O717: =IF(L717="","",$L$2*L717+$M$2*M717+$N$2*N717) -> 
O781: =IF(L781="","",$L$2*L781+$M$2*M781+$N$2*N781) -> 
O845: =IF(L845="","",$L$2*L845+$M$2*M845+$N$2*N845) -> 
O909: =IF(L909="","",$L$2*L909+$M$2*M909+$N$2*N909) -> 
O973: =IF(L973="","",$L$2*L973+$M$2*M973+$N$2*N973) -> 
O1037: =IF(L1037="","",$L$2*L1037+$M$2*M1037+$N$2*N1037) -> 
O1101: =IF(L1101="","",$L$2*L1101+$M$2*M1101+$N$2*N1101) -> 
O1165: =IF(L1165="","",$L$2*L1165+$M$2*M1165+$N$2*N1165) -> 
O1229: =IF(L1229="","",$L$2*L1229+$M$2*M1229+$N$2*N1229) -> 
O1293: =IF(L1293="","",$L$2*L1293+$M$2*M1293+$N$2*N1293) -> 
O1357: =IF(L1357="","",$L$2*L1357+$M$2*M1357+$N$2*N1357) -> 
O1421: =IF(L1421="","",$L$2*L1421+$M$2*M1421+$N$2*N1421) -> 
O1485: =IF(L1485="","",$L$2*L1485+$M$2*M1485+$N$2*N1485) -> 
O1549: =IF(L1549="","",$L$2*L1549+$M$2*M1549+$N$2*N1549) -> 
O1613: =IF(L1613="","",$L$2*L1613+$M$2*M1613+$N$2*N1613) -> 
O1677: =IF(L1677="","",$L$2*L1677+$M$2*M1677+$N$2*N1677) -> 
O1741: =IF(L1741="","",$L$2*L1741+$M$2*M1741+$N$2*N1741) -> 
O1805: =IF(L1805="","",$L$2*L1805+$M$2*M1805+$N$2*N1805) -> 
O1869: =IF(L1869="","",$L$2*L1869+$M$2*M1869+$N$2*N1869) -> 
O1933: =IF(L1933="","",$L$2*L1933+$M$2*M1933+$N$2*N1933) -> 
O1997: =IF(L1997="","",$L$2*L1997+$M$2*M1997+$N$2*N1997) -> 
O2061: =IF(L2061="","",$L$2*L2061+$M$2*M2061+$N$2*N2061) -> 
O2125: =IF(L2125="","",$L$2*L2125+$M$2*M2125+$N$2*N2125) -> 
O2189: =IF(L2189="","",$L$2*L2189+$M$2*M2189+$N$2*N2189) -> 
O2253: =IF(L2253="","",$L$2*L2253+$M$2*M2253+$N$2*N2253) -> 
O2317: =IF(L2317="","",$L$2*L2317+$M$2*M2317+$N$2*N2317) -> 
O2381: =IF(L2381="","",$L$2*L2381+$M$2*M2381+$N$2*N2381) -> 
O2445: =IF(L2445="","",$L$2*L2445+$M$2*M2445+$N$2*N2445) -> 
O2509: =IF(L2509="","",$L$2*L2509+$M$2*M2509+$N$2*N2509) -> 
O2573: =IF(L2573="","",$L$2*L2573+$M$2*M2573+$N$2*N2573) -> 
O2637: =IF(L2637="","",$L$2*L2637+$M$2*M2637+$N$2*N2637) -> 
O2701: =IF(L2701="","",$L$2*L2701+$M$2*M2701+$N$2*N2701) -> 
O2765: =IF(L2765="","",$L$2*L2765+$M$2*M2765+$N$2*N2765) -> 
O2829: =IF(L2829="","",$L$2*L2829+$M$2*M2829+$N$2*N2829) -> 
O2893: =IF(L2893="","",$L$2*L2893+$M$2*M2893+$N$2*N2893) -> 
O2957: =IF(L2957="","",$L$2*L2957+$M$2*M2957+$N$2*N2957) -> 
O3021: =IF(L3021="","",$L$2*L3021+$M$2*M3021+$N$2*N3021) -> 
O3085: =IF(L3085="","",$L$2*L3085+$M$2*M3085+$N$2*N3085) -> 
O3149: =IF(L3149="","",$L$2*L3149+$M$2*M3149+$N$2*N3149) -> 
O3213: =IF(L3213="","",$L$2*L3213+$M$2*M3213+$N$2*N3213) -> 
O3277: =IF(L3277="","",$L$2*L3277+$M$2*M3277+$N$2*N3277) -> 
O3341: =IF(L3341="","",$L$2*L3341+$M$2*M3341+$N$2*N3341) -> 
O3405: =IF(L3405="","",$L$2*L3405+$M$2*M3405+$N$2*N3405) -> 
O3469: =IF(L3469="","",$L$2*L3469+$M$2*M3469+$N$2*N3469) -> 
O3533: =IF(L3533="","",$L$2*L3533+$M$2*M3533+$N$2*N3533) -> 
O3597: =IF(L3597="","",$L$2*L3597+$M$2*M3597+$N$2*N3597) -> 
O3661: =IF(L3661="","",$L$2*L3661+$M$2*M3661+$N$2*N3661) -> 
O3725: =IF(L3725="","",$L$2*L3725+$M$2*M3725+$N$2*N3725) -> 
O3789: =IF(L3789="","",$L$2*L3789+$M$2*M3789+$N$2*N3789) -> 
O3853: =IF(L3853="","",$L$2*L3853+$M$2*M3853+$N$2*N3853) -> 
O3917: =IF(L3917="","",$L$2*L3917+$M$2*M3917+$N$2*N3917) -> 
O3981: =IF(L3981="","",$L$2*L3981+$M$2*M3981+$N$2*N3981) -> 
O4045: =IF(L4045="","",$L$2*L4045+$M$2*M4045+$N$2*N4045) -> 
O4109: =IF(L4109="","",$L$2*L4109+$M$2*M4109+$N$2*N4109) -> 
O4173: =IF(L4173="","",$L$2*L4173+$M$2*M4173+$N$2*N4173) -> 
O4237: =IF(L4237="","",$L$2*L4237+$M$2*M4237+$N$2*N4237) -> 
O4301: =IF(L4301="","",$L$2*L4301+$M$2*M4301+$N$2*N4301) -> 
O4365: =IF(L4365="","",$L$2*L4365+$M$2*M4365+$N$2*N4365) -> 
O4429: =IF(L4429="","",$L$2*L4429+$M$2*M4429+$N$2*N4429) -> 
O4493: =IF(L4493="","",$L$2*L4493+$M$2*M4493+$N$2*N4493) -> 
O4557: =IF(L4557="","",$L$2*L4557+$M$2*M4557+$N$2*N4557) -> 
O4621: =IF(L4621="","",$L$2*L4621+$M$2*M4621+$N$2*N4621) -> 
O4685: =IF(L4685="","",$L$2*L4685+$M$2*M4685+$N$2*N4685) -> 
O4749: =IF(L4749="","",$L$2*L4749+$M$2*M4749+$N$2*N4749) -> 
O4813: =IF(L4813="","",$L$2*L4813+$M$2*M4813+$N$2*N4813) -> 
O4877: =IF(L4877="","",$L$2*L4877+$M$2*M4877+$N$2*N4877) -> 
O4941: =IF(L4941="","",$L$2*L4941+$M$2*M4941+$N$2*N4941) -> 
O5005: =IF(L5005="","",$L$2*L5005+$M$2*M5005+$N$2*N5005) -> 
O5069: =IF(L5069="","",$L$2*L5069+$M$2*M5069+$N$2*N5069) -> 
O5133: =IF(L5133="","",$L$2*L5133+$M$2*M5133+$N$2*N5133) -> 
O5197: =IF(L5197="","",$L$2*L5197+$M$2*M5197+$N$2*N5197) -> 
O5261: =IF(L5261="","",$L$2*L5261+$M$2*M5261+$N$2*N5261) -> 
O5325: =IF(L5325="","",$L$2*L5325+$M$2*M5325+$N$2*N5325) -> 
O5389: =IF(L5389="","",$L$2*L5389+$M$2*M5389+$N$2*N5389) -> 
O5453: =IF(L5453="","",$L$2*L5453+$M$2*M5453+$N$2*N5453) -> 

Sheet Mastschweine
A1: =CELL("row",A1) -> 1 | C1: Deckungsbeitragsrechnung für: | K1: Mastschweine (DLxDExPi) | O1: Einheit: 1 | P1: Platz | R1: < Formular 1 > | T1: Währung: | U1: €
A2: 2
A3: 3 | K3: Mastschwein I | O3: Mastschwein II
A4: 4 | D4: Gewicht am Anfang & Ende | K4: 28 | L4: kg (Anf.) | M4: 112 | N4: kg (Ende) | O4: 28 | P4: kg (Anf.) | Q4: 112 | R4: kg (Ende)
A5: 5 | D5: Zuwachs gesamt & je Tag | K5: =M4-K4 -> 84 | L5: kg ges. | M5: =IF(K6=0,0,K5*1000/K6) -> 700 | N5: g / Tag | O5: =Q4-O4 -> 84 | P5: kg ges. | Q5: =IF(O6=0,0,O5*1000/O6) -> 750 | R5: g / Tag
A6: 6 | D6: Mastdauer & Leerzeit je Umtrieb | K6: 120 | L6: Tage | M6: 7 | N6: Tage | O6: 112 | P6: Tage | Q6: 5 | R6: Tage
A7: 7 | D7: Umtriebsdauer und Futterverwertung | K7: =K6+M6 -> 127 | L7: Tage | M7: 2.8 | N7: :1 kg | O7: =O6+Q6 -> 117 | P7: Tage | Q7: 2.7 | R7: :1 kg
A8: 8 | D8: Vermarktungsgewicht & Mast-Verluste | K8: 80 | L8: %v.Endgew. | M8: 3 | N8: % Verl. | O8: 80 | P8: %v.Endgew. | Q8: 2 | R8: % Verl. | S8: Das Vermarktungsgewicht wird in % des Endgewichts angegeben: bei Lebendvermarktung z.B. 98% (2% Nüchterung), bei Geschlachtetvermarktung z.B. 80% (Ausschlachtung)
A9: 9 | D9: Tiere & GV je Einheit | K9: =IF(K7=0,0,365/K7) -> 2.874015748 | L9: Tiere/Einh. | M9: =((M4+K4)/2)/500 -> 0.14 | N9: GV/Einh. | O9: =IF(O7=0,0,365/O7) -> 3.11965812 | P9: Tiere/Einh. | Q9: =((Q4+O4)/2)/500 -> 0.14 | R9: GV/Einh.
A10: 10
A11: 11 | C11: Marktleistung | J11: Einh. | K11: kg/Tier | L11: Stück | M11: =Curr&"/Einh." -> €/Einh. | N11: =Curr -> € | O11: kg/Tier | P11: Stück | Q11: =Curr&"/Einh." -> €/Einh. | R11: =Curr -> €
A12: 12 | D12: Mastschweine | J12: kg | K12: =M4*K8% -> 89.6 | L12: =IF(K4=0,0,K9*(1-M8%)) -> 2.787795276 | M12: 1.52 | N12: =M12*K12*L12 -> 379.6754142 | O12: =Q4*O8% -> 89.6 | P12: =IF(O4=0,0,O9*(1-Q8%)) -> 3.057264957 | Q12: =M12 -> 1.52 | R12: =Q12*O12*P12 -> 416.3750291
A13: 13 | D13: Dung: (Rein-NS) | J13: Einh. | K13: Ausnutz. | L13: Umfang | M13: =Curr&"/Einh." -> €/Einh. | N13: =Curr -> € | O13: Ausnutz. | P13: Umfang | Q13: =Curr&"/Einh." -> €/Einh. | R13: =Curr -> €
A14: 14 | E14: N | G14: 97.5 | H14: kg/GV u.J. | J14: kg | K14: 0.6 | L14: =$G14*K14*M9 -> 8.19 | M14: 0.63 | N14: =M14*L14 -> 5.1597 | O14: =K14 -> 0.6 | P14: =$G14*O14*Q9 -> 8.19 | Q14: 0.63 | R14: =Q14*P14 -> 5.1597
A15: 15 | E15: P2O5 | G15: 49.5 | H15: kg/GV u.J. | J15: kg | K15: 1 | L15: =$G15*K15*M9 -> 6.93 | M15: 0.58 | N15: =M15*L15 -> 4.0194 | O15: 1 | P15: =$G15*O15*Q9 -> 6.93 | Q15: 0.58 | R15: =Q15*P15 -> 4.0194
A16: 16 | E16: K2O | G16: 49.5 | H16: kg/GV u.J. | J16: kg | K16: 1 | L16: =$G16*K16*M9 -> 6.93 | M16: 0.31 | N16: =M16*L16 -> 2.1483 | O16: 1 | P16: =$G16*O16*Q9 -> 6.93 | Q16: 0.31 | R16: =Q16*P16 -> 2.1483
A17: 17 | D17: Prämien | M17: 0 | Q17: 0
A18: 18 | C18: Marktleistung gesamt | N18: =SUM(N12:N12,N14:N17) -> 391.0028142 | R18: =SUM(R12:R12,R14:R17) -> 427.7024291
A19: 19 | C19: Proportional variable Spezialkosten
A20: 20 | C20: Bestandsergänzung | K20: Umfang | M20: =Curr&"/Einh." -> €/Einh. | N20: =Curr -> € | O20: Umfang | Q20: =Curr&"/Einh." -> €/Einh. | R20: =Curr -> €
A21: 21 | D21: Ferkel | K21: =K9 -> 2.874015748 | L21: Tiere/Jahr | M21: 54.2 | N21: =M21*K21 -> 155.7716535 | O21: =O9 -> 3.11965812 | P21: Tiere/Jahr | Q21: 54.2 | R21: =Q21*O21 -> 169.0854701
A22: 22 | C22: Futtermittel (marktgäng.) | I22: MJ ME | J22: / Einh. | K22: Umfang | L22: MJ ME | M22: =Curr&"/Einh." -> €/Einh. | N22: =Curr -> € | O22: Umfang | P22: MJ ME | Q22: =Curr&"/Einh." -> €/Einh. | R22: =Curr -> € | T22: Ration I | U22: Ration II
A23: 23 | D23: Eigenes Getreide | I23: 12.9 | J23: / dt | K23: =$T$32*T23 -> 3.934136693 | L23: =K23*$I23 -> 50.75036334 | M23: 11.5 | N23: =M23*K23 -> 45.24257197 | O23: =$U$32*U23 -> 4.160326154 | P23: =O23*$I23 -> 53.66820738 | Q23: 11.5 | R23: =Q23*O23 -> 47.84375077 | T23: 0.6 | U23: 0.6
A24: 24 | D24: Ergänzungsfutter A | I24: 12.2 | J24: / dt | K24: =$T$32*T24 -> 2.622757795 | L24: 31.9976451 | M24: 28 | N24: 73.43721827 | P24: 0 | R24: 0 | T24: 0.4
A25: 25 | D25: Ergänzungsfutter B | I25: 12.9 | J25: / dt | L25: 0 | N25: 0 | O25: =$U$32*U25 -> 2.773550769 | P25: 35.77880492 | Q25: 30 | R25: 83.20652308 | U25: 0.4
A26: 26 | I26: 0 | L26: 0 | M26: 0 | N26: 0 | P26: 0 | Q26: 0 | R26: 0
A27: 27 | I27: 0 | L27: 0 | M27: 0 | N27: 0 | P27: 0 | Q27: 0 | R27: 0
A28: 28 | I28: 0 | L28: 0 | M28: 0 | N28: 0 | P28: 0 | Q28: 0 | R28: 0
A29: 29 | I29: 0 | L29: 0 | M29: 0 | N29: 0 | P29: 0 | Q29: 0 | R29: 0
A30: 30 | I30: 0 | L30: 0 | M30: 0 | N30: 0 | P30: 0 | Q30: 0 | R30: 0
A31: 31 | I31: 0 | L31: 0 | M31: 0 | N31: 0 | P31: 0 | Q31: 0 | R31: 0
A32: 32 | D32: Futtermittel gesamt | L32: =SUM(L23:L31) -> 82.74800844 | N32: =SUM(N23:N31) -> 118.6797902 | P32: =SUM(P23:P31) -> 89.44701231 | R32: =SUM(R23:R31) -> 131.0502738 | T32: =(M4-K4)*M7/100*L12 -> 6.556894488 | U32: =(Q4-O4)*Q7/100*P12 -> 6.933876923 | V32: ="verknüpft mit Futterverwertung in Zeile "&FIXED(A7,0) -> verknüpft mit Futterverwertung in Zeile 7
A33: =CELL("row",A33) -> 33 | C33: Dienstleistungen | J33: Einh. | K33: Erläuter. | L33: Umfang | M33: =Curr&"/Einh." -> €/Einh. | N33: =Curr -> € | O33: Erläuter. | P33: Umfang | Q33: =Curr&"/Einh." -> €/Einh. | R33: =Curr -> €
A34: 34 | N34: =M34*L34 -> 0 | R34: =Q34*P34 -> 0
A35: 35 | M35: 0 | N35: =M35*L35 -> 0 | Q35: 0 | R35: =Q35*P35 -> 0
A36: 36 | M36: 0 | N36: =M36*L36 -> 0 | Q36: 0 | R36: =Q36*P36 -> 0
A37: 37 | D37: Dienstleistungen gesamt | N37: =SUM(N34:N36) -> 0 | R37: =SUM(R34:R36) -> 0
A38: 38 | C38: Variable Maschinenkosten | J38: Einh. | K38: Erläuter. | L38: Umfang | M38: =Curr&"/Einh." -> €/Einh. | N38: =Curr -> € | O38: Erläuter. | P38: Umfang | Q38: =Curr&"/Einh." -> €/Einh. | R38: =Curr -> €
A39: 39 | D39: MSchwein pausch | J39: 1 Platz | L39: 1 | M39: 32 | N39: =M39*L39 -> 32 | P39: 1 | Q39: 32 | R39: =Q39*P39 -> 32
A40: 40 | M40: 0 | N40: =M40*L40 -> 0 | Q40: 0 | R40: =Q40*P40 -> 0
A41: 41 | D41: Variable Maschinenkosten gesamt | N41: =SUM(N39:N40) -> 32 | R41: =SUM(R39:R40) -> 32
A42: 42 | C42: Sonstige Kosten | J42: Einh. | K42: Erläuter. | L42: Umfang | M42: =Curr&"/Einh." -> €/Einh. | N42: =Curr -> € | O42: Erläuter. | P42: Umfang | Q42: =Curr&"/Einh." -> €/Einh. | R42: =Curr -> €
A43: 43 | D43: Tierarzt, Medikamente | J43: 1 Platz | L43: 1 | M43: 5 | N43: =M43*L43 -> 5 | P43: 1 | Q43: 5 | R43: =Q43*P43 -> 5
A44: 44 | D44: Strom, Wasser | J44: 1 Platz | L44: 1 | M44: 8 | N44: 8 | P44: 1 | Q44: 8 | R44: 8
A45: 45 | D45: Kontrollring/Versicherung | J45: 1 Platz | L45: 1 | M45: 3 | N45: 3 | P45: 1 | Q45: 3 | R45: 3
A46: 46 | D46: Vermarktungskosten | J46: 1 Platz | L46: 1 | M46: 10 | N46: 10 | P46: 1 | Q46: 10 | R46: 10
A47: 47 | D47: Sonstiges | J47: 1 Platz | L47: 1 | M47: 4 | N47: 4 | P47: 1 | Q47: 4 | R47: 4
A48: 48 | N48: 0 | R48: 0
A49: 49 | N49: 0 | R49: 0
A50: 50 | N50: 0 | R50: 0
A51: 51 | C51: Variable Kosten insgesamt | N51: =N21+N32+N37+N41+SUM(N43:N50) -> 336.4514438 | R51: =R21+R32+R37+R41+SUM(R43:R50) -> 362.1357439
A52: 52 | C52: Deckungsbeitrag je Einheit | N52: =N18-N51 -> 54.55137039 | R52: =R18-R51 -> 65.56668513
A53: 53 | C53: Deckungsbeitrag je Mastschwein | N53: =IF(K9=0,0,N52/K9) -> 18.98088778 | R53: =IF(O9=0,0,R52/O9) -> 21.01726619
A54: 54 | C54: Bedarf an Umlauf- und Viehvermögen | N54: =IF(K9=0,0,(N21+N32*50%+N51)/2/K9) -> 95.95684937 | R54: =IF(O9=0,0,(R21+R32*50%+R51)/2/O9) -> 95.6429083
A55: 55
A56: 56 | C56: Einstreu | I56: Einheit | M56: kg/Tag | N56: Gesamt | Q56: kg/Tag | R56: Gesamt
A57: 57 | D57: Strohbedarf | I57: t | N57: =M57*365/1000 -> 0 | R57: =Q57*365/1000 -> 0
A58: 58 | C58: Arbeitszeitbedarf | K58: Tägliche Arbeiten | M58: ungebund. | N58: Gesamt | O58: Tägliche Arbeiten | Q58: ungebund. | R58: Gesamt
A59: 59 | D59: - | E59: Buchtenstall | I59: Periode | K59: Tage | L59: Min/Tag | M59: AKh | N59: AKh/Jahr | O59: Tage | P59: Min/Tag | Q59: AKh | R59: AKh/Jahr
A60: 60 | D60: - | E60: Spaltenboden | I60: Vormast | K60: 100 | L60: 0.12 | M60: 0.05 | N60: =L60/60*K60+M60 -> 0.25 | O60: 100 | P60: 0.12 | Q60: 0.05 | R60: =P60/60*O60+Q60 -> 0.25
A61: 61 | D61: - | E61: autom. Fütterung | I61: Hauptmast | K61: =365-K60 -> 265 | L61: 0.15 | M61: 0.05 | N61: =L61/60*K61+M61 -> 0.7125 | O61: =365-O60 -> 265 | P61: 0.15 | Q61: 0.05 | R61: =P61/60*O61+Q61 -> 0.7125
A62: 62 | D62: - | I62: Gesamt | K62: =SUM(K60:K61) -> 365 | N62: =SUM(N60:N61) -> 0.9625 | O62: =SUM(O60:O61) -> 365 | R62: =SUM(R60:R61) -> 0.9625
A63: 63
E67: Wertetabelle für Übersicht 2
G68: Ferkelpreis (€ je Ferkel)
F69: ='[3]F3 Faktorentgelt'!J33 -> 0.04485069503 | G69: 50 | H69: =G69+1 -> 51 | I69: 52 | J69: 53 | K69: 54 | L69: 55 | M69: 56 | N69: 57 | O69: 58 | P69: 59
E70: Fleischpreis | F70: 1.25 | G70: 0.04485069503 | H70: 0.04485069503 | I70: 0.04485069503 | J70: 0.04485069503 | K70: 0.04485069503 | L70: 0.04485069503 | M70: 0.04485069503 | N70: 0.04485069503 | O70: 0.04485069503 | P70: 0.04485069503
F71: =F70+0.05 -> 1.3 | G71: 0.04485069503 | H71: 0.04485069503 | I71: 0.04485069503 | J71: 0.04485069503 | K71: 0.04485069503 | L71: 0.04485069503 | M71: 0.04485069503 | N71: 0.04485069503 | O71: 0.04485069503 | P71: 0.04485069503
F72: 1.35 | G72: 0.04485069503 | H72: 0.04485069503 | I72: 0.04485069503 | J72: 0.04485069503 | K72: 0.04485069503 | L72: 0.04485069503 | M72: 0.04485069503 | N72: 0.04485069503 | O72: 0.04485069503 | P72: 0.04485069503
F73: 1.4 | G73: 0.04485069503 | H73: 0.04485069503 | I73: 0.04485069503 | J73: 0.04485069503 | K73: 0.04485069503 | L73: 0.04485069503 | M73: 0.04485069503 | N73: 0.04485069503 | O73: 0.04485069503 | P73: 0.04485069503
F74: 1.45 | G74: 0.04485069503 | H74: 0.04485069503 | I74: 0.04485069503 | J74: 0.04485069503 | K74: 0.04485069503 | L74: 0.04485069503 | M74: 0.04485069503 | N74: 0.04485069503 | O74: 0.04485069503 | P74: 0.04485069503
F75: 1.5 | G75: 0.04485069503 | H75: 0.04485069503 | I75: 0.04485069503 | J75: 0.04485069503 | K75: 0.04485069503 | L75: 0.04485069503 | M75: 0.04485069503 | N75: 0.04485069503 | O75: 0.04485069503 | P75: 0.04485069503
F76: 1.55 | G76: 0.04485069503 | H76: 0.04485069503 | I76: 0.04485069503 | J76: 0.04485069503 | K76: 0.04485069503 | L76: 0.04485069503 | M76: 0.04485069503 | N76: 0.04485069503 | O76: 0.04485069503 | P76: 0.04485069503
F77: 1.6 | G77: 0.04485069503 | H77: 0.04485069503 | I77: 0.04485069503 | J77: 0.04485069503 | K77: 0.04485069503 | L77: 0.04485069503 | M77: 0.04485069503 | N77: 0.04485069503 | O77: 0.04485069503 | P77: 0.04485069503
F78: 1.65 | G78: 0.04485069503 | H78: 0.04485069503 | I78: 0.04485069503 | J78: 0.04485069503 | K78: 0.04485069503 | L78: 0.04485069503 | M78: 0.04485069503 | N78: 0.04485069503 | O78: 0.04485069503 | P78: 0.04485069503
F79: 1.7 | G79: 0.04485069503 | H79: 0.04485069503 | I79: 0.04485069503 | J79: 0.04485069503 | K79: 0.04485069503 | L79: 0.04485069503 | M79: 0.04485069503 | N79: 0.04485069503 | O79: 0.04485069503 | P79: 0.04485069503
E80: Zur Neuberechnung der Tabelle F9 drücken !!!

Sheet Wiese_Silage
B1: 1 | C1: Tabelle 6: Deckungsbeitragsrechnung für: | L1: =K3 -> Wiese-Silage | O1: Einheit: 1 | P1: ha
B2: =1+B1 -> 2
B3: 3 | K3: Wiese-Silage
B4: 4 | C4: Energieertrag | K4: %T Grüng. | L4: %T Futter | M4: MJ / dt | N4: %T Grüng. | O4: %T Futter | P4: MJ / dt
B5: 5 | D5: TM- & Energiekonzentration | K5: 0.18 | L5: 0.35 | M5: 140 | S5: 64064
B6: 6 | J6: Einh. | K6: Brutto | L6: Verluste | M6: Netto | N6: Brutto | O6: Verluste | P6: Netto | S6: =K9 -> 42000
B7: 7 | D7: Brutto-Grüngut / Netto-Futter | J7: dt | K7: 300 | L7: - | M7: =IF(L5=0,0,M8/L5) -> 131.1428571 | O7: - | P7: =IF(O5=0,0,P8/O5) -> 0 | S7: =S5/S6 -> 1.525333333
B8: 8 | D8: Trockenmasse | J8: dt | K8: =K7*K5 -> 54 | L8: 0.15 | M8: =K8*(1-L8) -> 45.9 | N8: =N7*N5 -> 0 | P8: =N8*(1-O8) -> 0
B9: 9 | D9: Energie | G9: NEL | J9: MJ | K9: =K7*M5 -> 42000 | L9: 0.2 | M9: =K9*(1-L9) -> 33600 | N9: =N7*P5 -> 0 | P9: =N9*(1-O9) -> 0
B10: 10 | C10: Einstreu | J10: dt | M10: =K10*(1-L10) -> 0 | P10: =N10*(1-O10) -> 0
B11: 11 | C11: Proportional variable Spezialkosten
B12: 12 | C12: Saatgut | J12: Einh. | K12: Umfang | L12: =Curr&"/Einh." -> DM/Einh. | M12: =Curr -> DM | N12: Umfang | O12: =Curr&"/Einh." -> DM/Einh. | P12: =Curr -> DM
B13: 13 | D13: Nachsaat alle 5 JAHRE | J13: kg | K13: 5 | L13: 10 | M13: =L13*K13 -> 50
B14: 14 | L14: 0 | M14: =L14*K14 -> 0 | O14: 0 | P14: =O14*N14 -> 0
B15: 15 | D15: Saatgut gesamt | M15: =SUM(M13:M14) -> 50 | P15: =SUM(P13:P14) -> 0
B16: 16 | C16: Düngung | G16: kg NS / | H16: 1 t T | I16: Bed. | J16: Ausn. | L16: =IF(SUM($H18:$H22)=0,""," "&$G17&" : "&$H17&" = 1 :") ->  | O16: =IF(SUM($H18:$H22)=0,""," "&$G17&" : "&$H17&" = 1 :") -> 
B17: 17 | D17: Nährstoff | I17: fakt. | J17: Rückl. | K17: kg | L17: =Curr&"/"&K17 -> DM/kg | M17: =Curr -> DM | N17: =K17 -> kg | O17: =Curr&"/"&N17 -> DM/kg | P17: =Curr -> DM
B18: 18 | D18: N | H18: 0 | I18: 1.1 | L18: 0.63 | M18: =L18*K18 -> 0 | N18: =((($G18*N8/$I23)+($H18*N8/$I23*P16))*$I18)-($H18*N8/$I23*$I18*$J18) -> 0 | O18: =npreis -> 1 | P18: =O18*N18 -> 0
B19: 19 | D19: P2O5 | H19: 0 | I19: 1 | K19: 80 | L19: 0.58 | M19: =L19*K19 -> 46.4 | N19: =((($G19*N8/$I23)+($H19*N8/$I23*P16))*$I19)-($H19*N8/$I23*$I19*$J19) -> 0 | O19: =kpreis -> 1.1 | P19: =O19*N19 -> 0
B20: 20 | D20: K2O | H20: 0 | I20: 1 | K20: 180 | L20: 0.31 | M20: =L20*K20 -> 55.8 | N20: =((($G20*N8/$I23)+($H20*N8/$I23*P16))*$I20)-($H20*N8/$I23*$I20*$J20) -> 0 | O20: =ppreis -> 0.6 | P20: =O20*N20 -> 0
B21: 21 | D21: MgO | H21: 0 | K21: =((($G21*K8/$I23)+($H21*K8/$I23*M16))*$I21)-($H21*K8/$I23*$I21*$J21) -> 0 | M21: =L21*K21 -> 0 | N21: =((($G21*N8/$I23)+($H21*N8/$I23*P16))*$I21)-($H21*N8/$I23*$I21*$J21) -> 0 | P21: =O21*N21 -> 0
B22: 22 | D22: CaO | H22: 0 | K22: =((($G22*K8/$I23)+($H22*K8/$I23*M16))*$I22)-($H22*K8/$I23*$I22*$J22) -> 0 | M22: =L22*K22 -> 0 | N22: =((($G22*N8/$I23)+($H22*N8/$I23*P16))*$I22)-($H22*N8/$I23*$I22*$J22) -> 0 | P22: =O22*N22 -> 0
B23: 23 | D23: Düngung ges. | H23: ="( "&H16&" =" -> ( 1 t T = | I23: 10 | J23: =J7&" )" -> dt ) | M23: =SUM(M18:M22) -> 102.2 | P23: =SUM(P18:P22) -> 0
B24: 24 | C24: Pflanzenschutz | I24: Einh./ha | K24: Umfang | L24: =Curr&"/Einh." -> DM/Einh. | M24: =Curr -> DM | N24: =K24 -> Umfang | O24: =Curr&"/Einh." -> DM/Einh. | P24: =Curr -> DM
B25: 25 | M25: =L25*K25*$I25 -> 0 | P25: =O25*N25*$I25 -> 0
B26: 26 | M26: =L26*K26*$I26 -> 0 | P26: =O26*N26*$I26 -> 0
B27: 27 | I27: 0 | L27: 0 | M27: =L27*K27*$I27 -> 0 | O27: 0 | P27: =O27*N27*$I27 -> 0
B28: 28 | D28: Pflanzenschutz gesamt | M28: =SUM(M25:M27) -> 0 | P28: =SUM(P25:P27) -> 0
B29: 29 | C29: Dienstleistungen | J29: Einh. | K29: Umfang | L29: =Curr&"/Einh." -> DM/Einh. | M29: =Curr -> DM | N29: =K29 -> Umfang | O29: =Curr&"/Einh." -> DM/Einh. | P29: =Curr -> DM
B30: 30 | M30: =L30*K30 -> 0 | P30: =O30*N30 -> 0
B31: 31 | M31: =L31*K31 -> 0 | P31: =O31*N31 -> 0
B32: 32 | L32: 0 | M32: =L32*K32 -> 0 | O32: 0 | P32: =O32*N32 -> 0
B33: 33 | L33: 0 | M33: =L33*K33 -> 0 | O33: 0 | P33: =O33*N33 -> 0
B34: =1+B33 -> 34 | L34: 0 | M34: =L34*K34 -> 0 | O34: 0 | P34: =O34*N34 -> 0
B35: 35 | D35: Dienstleistungen gesamt | M35: =SUM(M30:M34) -> 0 | P35: =SUM(P30:P34) -> 0
B36: 36 | C36: Arbeit | J36: h | K36: =L65 -> 10 | M36: =L36*K36 -> 0 | N36: =O65 -> 0 | P36: =O36*N36 -> 0
B37: 37 | C37: Variable Kosten der Eigenmech. | M37: =M65 -> 250 | P37: =P65 -> 0
B38: 38 | C38: Sonstige Kosten | J38: Einh. | K38: Umfang | L38: =Curr&"/Einh." -> DM/Einh. | M38: =Curr -> DM | N38: =K38 -> Umfang | O38: =Curr&"/Einh." -> DM/Einh. | P38: =Curr -> DM
B39: 39 | K39: 25
B40: 40
B41: 41 | M41: =L41*K41 -> 0 | P41: =O41*N41 -> 0
B42: 42 | M42: =L42*K42 -> 0 | P42: =O42*N42 -> 0
B43: 43 | C43: Variable Kosten insgesamt | M43: =SUM(M39:M42,M36,M37,M35,M28,M23,M15) -> 402.2 | P43: =SUM(P39:P42,P36,P37,P35,P28,P23,P15) -> 0
B44: 44 | C44: Ausgleichszahlung | J44: ha | K44: Kulap | M44: 300
B45: 45 | C45: Deckungsbeitrag (ggf. mit Prämie) | M45: =M44-M43 -> -102.2 | P45: =P44-P43 -> 0
B46: 46 | C46: Bedarf an Umlaufvermögen | K46: 0.5 | L46: der v.Ko. | M46: =M43*K46 -> 201.1 | O46: der v.Ko. | P46: =P43*N46 -> 0
B47: 47 | C47: Var. Ko. je 10 MJ NEL mit / ohne Prämie | K47: =IF(M9=0,"",(M43-M44)/M9*10) -> 0.03041666667 | L47: <mit/ohne> | M47: =IF(M9=0,"",M43/M9*10) -> 0.119702381 | N47: =IF(P9=0,"",(P43-P44)/P9*10) ->  | O47: <mit/ohne> | P47: =IF(P9=0,"",P43/P9*10) -> 
B48: 48 | C48: Lagerraumbedarf bei Raumgewicht | K48: 7 | L48: dt/m³ | M48: =IF(K48=0,0,K7/K48) -> 42.85714286 | N48: 7.1 | O48: dt/m³ | P48: =IF(N48=0,0,N7/N48) -> 0
B49: 49 | R49: Nebenrechnung: Ermittlung des Arbeitszeitbedarfes in den Zeitspannen
B50: 50 | C50: Variable Kosten (v.K) der Eigenmechanisierung und Arbeitszeitbedarf (AKh) | R50: =K3 -> Wiese-Silage | V50: =N3 -> 0
B51: 51 | C51: Einh. | F51: Verfahren | J51: ZSp | K51: Umfang | L51: AKh | M51: ="v.K. ("&Curr&")" -> v.K. (DM) | N51: Umfang | O51: AKh | P51: ="v.K. ("&Curr&")" -> v.K. (DM) | R51: FB | S51: HH | T51: GE | U51: HE | V51: FB | W51: HH | X51: GE | Y51: HE
B52: 52 | R52: =IF($J52=R$51,$L52,0) -> 0 | S52: 0 | T52: 0 | U52: 0 | V52: =IF($J52=V$51,$O52,0) -> 0 | W52: 0 | X52: 0 | Y52: 0
B53: 53 | R53: 0 | S53: 0 | T53: 0 | U53: 0 | V53: 0 | W53: 0 | X53: 0 | Y53: 0
B54: 54 | R54: 0 | S54: 0 | T54: 0 | U54: 0 | V54: 0 | W54: 0 | X54: 0 | Y54: 0
B55: 55 | R55: 0 | S55: 0 | T55: 0 | U55: 0 | V55: 0 | W55: 0 | X55: 0 | Y55: 0
B56: 56 | R56: 0 | S56: 0 | T56: 0 | U56: 0 | V56: 0 | W56: 0 | X56: 0 | Y56: 0
B57: 57 | D57: pauschal | L57: 10 | M57: 250 | R57: 0 | S57: 0 | T57: 0 | U57: 0 | V57: 0 | W57: 0 | X57: 0 | Y57: 0
B58: 58 | R58: 0 | S58: 0 | T58: 0 | U58: 0 | V58: 0 | W58: 0 | X58: 0 | Y58: 0
B59: 59 | R59: 0 | S59: 0 | T59: 0 | U59: 0 | V59: 0 | W59: 0 | X59: 0 | Y59: 0
B60: 60 | R60: 0 | S60: 0 | T60: 0 | U60: 0 | V60: 0 | W60: 0 | X60: 0 | Y60: 0
B61: 61 | L61: 0 | M61: 0 | R61: 0 | S61: 0 | T61: 0 | U61: 0 | V61: 0 | W61: 0 | X61: 0 | Y61: 0
B62: 62 | L62: 0 | M62: 0 | R62: 0 | S62: 0 | T62: 0 | U62: 0 | V62: 0 | W62: 0 | X62: 0 | Y62: 0
B63: 63 | L63: 0 | M63: 0 | R63: 0 | S63: 0 | T63: 0 | U63: 0 | V63: 0 | W63: 0 | X63: 0 | Y63: 0
B64: 64 | L64: 0 | M64: 0 | R64: 0 | S64: 0 | T64: 0 | U64: 0 | V64: 0 | W64: 0 | X64: 0 | Y64: 0
B65: 65 | D65: Gesamt | K65: - | L65: =SUM(L52:L64) -> 10 | M65: =SUM(M52:M64) -> 250 | N65: - | O65: =SUM(O52:O64) -> 0 | P65: =SUM(P52:P64) -> 0 | R65: =SUM(R52:R64) -> 0 | S65: 0 | T65: 0 | U65: 0 | V65: 0 | W65: 0 | X65: 0 | Y65: 0
B66: 66 | D66: Arbeitszeitbedarf in den Zeitspannen | K66: =IF(L65=0,""," "&R51&": "&FIXED(R65,1)&" / "&S51&": "&FIXED(S65,1)&" / "&T51&": "&FIXED(T65,1)&" / "&U51&": "&FIXED(U65,1)) -> FB: 0.0 / HH: 0.0 / GE: 0.0 / HE: 0.0 | N66: =IF(O65=0,""," "&V51&": "&FIXED(V65,1)&" / "&W51&": "&FIXED(W65,1)&" / "&X51&": "&FIXED(X65,1)&" / "&Y51&": "&FIXED(Y65,1)) -> 

Sheet Grünroggen
A1: =CELL("row",A1) -> 1 | C1: Deckungsbeitragsrechnung für: | K1: Silomais | M1: Einheit: 1 | N1: ha | P1: < Formular 1 > | R1: Währung: | S1: €
A2: =CELL("row",A2) -> 2
A3: 3 | K3: Grünroggen
A4: 4 | C4: Energieertrag | K4: %T Grüng. | L4: %T Futter | M4: % T-Verl. | N4: %T Grüng. | O4: %T Futter | P4: % T-Verl.
A5: 5 | D5: TM-Gehalte und -verluste | K5: 0.22 | L5: 0.22 | M5: 0.1
A6: 6 | J6: Einh. | K6: Brutto | L6: Gehalte | M6: Netto | N6: Brutto | O6: Gehalte | P6: Netto
A7: 7 | D7: Brutto-Grüngut / Netto-Futter | J7: dt | K7: 250 | L7: - | M7: =IF(L5=0,0,M8/L5) -> 225 | O7: - | P7: =IF(O5=0,0,P8/O5) -> 0
A8: 8 | D8: Trockenmasse | J8: dt | K8: =K7*K5 -> 55 | L8: - | M8: =K8*(1-M5) -> 49.5 | N8: =N7*N5 -> 0 | O8: - | P8: =N8*(1-P5) -> 0
A9: 9 | D9: Energie | G9: MJ NEL / dt T netto | J9: MJ | M9: =L9*M$8 -> 0 | P9: =O9*P$8 -> 0 | Q9: Wenn die Nährstoffgehalte auf Frischmasse-Basis angegeben werden,
A10: 10 | G10: MJ ME / dt T netto | J10: MJ | M10: =L10*M$8 -> 0 | P10: =O10*P$8 -> 0 | Q10: müssen die Formeln für die Gesamtnährstofferträge geändert werden!
A11: 11 | D11: Protein | G11: kg XP / dt T netto | J11: kg | M11: =L11*M$8 -> 0 | P11: =O11*P$8 -> 0
A12: 12 | C12: Proportional variable Spezialkosten
A13: 13 | C13: Saatgut | J13: Einh. | K13: Umfang | L13: =Curr&"/Einh." -> €/Einh. | M13: =Curr -> € | N13: =K13 -> Umfang | O13: =Curr&"/Einh." -> €/Einh. | P13: =Curr -> €
A14: 14 | D14: Getreide | J14: dt | K14: 2 | L14: 45 | M14: =L14*K14 -> 90 | P14: =O14*N14 -> 0
A15: 15 | L15: 0 | M15: =L15*K15 -> 0 | O15: 0 | P15: =O15*N15 -> 0
A16: 16 | D16: Saatgut gesamt | M16: =SUM(M14:M15) -> 90 | P16: =SUM(P14:P15) -> 0
A17: 17 | C17: Düngung | G17: kg NS / | H17: 1 dt FM | I17: Bed. | J17: Ausn. | L17: =IF($A17=0,""," "&$G18&" : "&$H18&" = 1 :") -> GPfl. : = 1 : | O17: =IF($A17=0,""," "&$G18&" : "&$H18&" = 1 :") -> GPfl. : = 1 :
A18: 18 | D18: Nährstoff | G18: GPfl. | I18: fakt. | J18: Rückl. | K18: kg | L18: =Curr&"/"&K18 -> €/kg | M18: =Curr -> € | N18: =K18 -> kg | O18: =Curr&"/"&N18 -> €/kg | P18: =Curr -> €
A19: 19 | D19: N | G19: 0.35 | H19: 0 | I19: 1.1 | J19: 0 | K19: =IF($I$22=0,0,((($G19*K$7/$I$22)+($H19*K$7/$I$22*M$17))*$I19)-($H19*K$7/$I$22*M$17*$J19)) -> 96.25 | L19: 0.63 | M19: =L19*K19 -> 60.6375 | N19: =IF($I$22=0,0,((($G19*N$8/$I$22)+($H19*N$8/$I$22*P$17))*$I19)-($H19*N$8/$I$22*P$17*$J19)) -> 0 | O19: 0.63 | P19: =O19*N19 -> 0
A20: 20 | D20: P2O5 | G20: 0.11 | H20: 0 | I20: 1 | J20: 0 | K20: =IF($I$22=0,0,((($G20*K$7/$I$22)+($H20*K$7/$I$22*M$17))*$I20)-($H20*K$7/$I$22*M$17*$J20)) -> 27.5 | L20: 0.58 | M20: =L20*K20 -> 15.95 | N20: =IF($I$22=0,0,((($G20*N$8/$I$22)+($H20*N$8/$I$22*P$17))*$I20)-($H20*N$8/$I$22*P$17*$J20)) -> 0 | O20: 0.58 | P20: =O20*N20 -> 0
A21: 21 | D21: K2O | G21: 0.45 | H21: 0 | I21: 1 | J21: 0 | K21: =IF($I$22=0,0,((($G21*K$7/$I$22)+($H21*K$7/$I$22*M$17))*$I21)-($H21*K$7/$I$22*M$17*$J21)) -> 112.5 | L21: 0.31 | M21: =L21*K21 -> 34.875 | N21: =IF($I$22=0,0,((($G21*N$8/$I$22)+($H21*N$8/$I$22*P$17))*$I21)-($H21*N$8/$I$22*P$17*$J21)) -> 0 | O21: 0.31 | P21: =O21*N21 -> 0
A22: 22 | D22: Düngung ges. | H22: =IF($A17=0,"","( "&H17&" =") -> ( 1 dt FM = | I22: 1 | J22: =IF($A17=0,"",J7&" )") -> dt ) | M22: =SUM(M19:M21) -> 111.4625 | P22: =SUM(P19:P21) -> 0
A23: 23 | C23: Pflanzenschutz | I23: ="Einh./"&Unit -> Einh./ha | K23: Umfang | L23: =Curr&"/Einh." -> €/Einh. | M23: =Curr -> € | N23: =K23 -> Umfang | O23: =Curr&"/Einh." -> €/Einh. | P23: =Curr -> €
A24: 24 | D24: Herbizid 1 (Unkräuter) | I24: 1.5 | J24: l | K24: 1 | L24: 38 | M24: =L24*K24*$I24 -> 57 | P24: =O24*N24*$I24 -> 0
A25: 25 | D25: Herbizid 2 (Gräser) | I25: 1 | J25: l | K25: 0.5 | L25: 50 | M25: =L25*K25*$I25 -> 25 | P25: =O25*N25*$I25 -> 0
A26: 26 | I26: 0 | L26: 0 | M26: =L26*K26*$I26 -> 0 | O26: 0 | P26: =O26*N26*$I26 -> 0
A27: 27 | I27: 0 | L27: 0 | M27: =L27*K27*$I27 -> 0 | O27: 0 | P27: =O27*N27*$I27 -> 0
A28: 28 | I28: 0 | L28: 0 | M28: =L28*K28*$I28 -> 0 | O28: 0 | P28: =O28*N28*$I28 -> 0
A29: 29 | D29: Pflanzenschutz gesamt | M29: =SUM(M24:M28) -> 82 | P29: =SUM(P24:P28) -> 0
A30: 30 | C30: Dienstleistungen | J30: Einh. | K30: Umfang | L30: =Curr&"/Einh." -> €/Einh. | M30: =Curr -> € | N30: =K30 -> Umfang | O30: =Curr&"/Einh." -> €/Einh. | P30: =Curr -> €
A31: 31 | D31: Häckseln | J31: 1 ha | K31: 1 | L31: 180 | M31: =L31*K31 -> 180 | P31: =O31*N31 -> 0
A32: 32 | D32: Walzschlepper mit Fahrer | J32: 1 h | K32: 2 | L32: 25 | M32: =L32*K32 -> 50 | P32: =O32*N32 -> 0
A33: 33 | L33: 0 | M33: =L33*K33 -> 0 | O33: 0 | P33: =O33*N33 -> 0
A34: 34 | L34: 0 | M34: =L34*K34 -> 0 | O34: 0 | P34: =O34*N34 -> 0
A35: 35 | L35: 0 | M35: =L35*K35 -> 0 | O35: 0 | P35: =O35*N35 -> 0
A36: 36 | D36: Dienstleistungen gesamt | M36: =SUM(M31:M35) -> 230 | P36: =SUM(P31:P35) -> 0
A37: 37 | C37: Variable Kosten der Eigenmech. | M37: =M64 -> 114.345 | P37: =P64 -> 124.804
A38: 38 | C38: Sonstige Kosten | H38: Erläuterung | K38: Umfang | L38: =Curr&"/Einh." -> €/Einh. | M38: =Curr -> € | N38: =K38 -> Umfang | O38: =Curr&"/Einh." -> €/Einh. | P38: =Curr -> €
A39: 39 | D39: Silierung | H39: (Folie/Anstrich) | K39: =M48 -> 32.14285714 | L39: 0.75 | M39: =L39*K39 -> 24.10714286 | P39: =O39*N39 -> 0
A40: 40 | D40: Versicherung | H40: (Hagel) | K40: 1 | L40: 21 | M40: =L40*K40 -> 21 | P40: =O40*N40 -> 0
A41: 41 | M41: =L41*K41 -> 0 | P41: =O41*N41 -> 0
A42: 42 | M42: =L42*K42 -> 0 | P42: =O42*N42 -> 0
A43: 43 | C43: Variable Kosten insgesamt | M43: =SUM(M39:M42,M37,M36,M29,M22,M16) -> 672.9146429 | P43: =SUM(P39:P42,P37,P36,P29,P22,P16) -> 124.804
A44: 44 | C44: Ausgl.-zahl.: | I44: Silomais | J44: ha | K44: 1 | L44: 299 | M44: =L44*K44 -> 299 | P44: =O44*N44 -> 0
A45: 45 | C45: Deckungsbeitrag (ggf. mit Prämie) | M45: =M44-M43 -> -373.9146429 | P45: =P44-P43 -> -124.804
A46: 46 | C46: Bedarf an Umlaufvermögen | K46: 0.5 | L46: der v.Ko. | M46: =M43*K46 -> 336.4573214 | O46: der v.Ko. | P46: =P43*N46 -> 0
A47: 47 | C47: Var. Ko. je 100 MJ NEL mit / ohne Prämie | K47: =IF(M9=0,"",(M43-M44)/M9*100) ->  | L47: <mit/ohne> | M47: =IF(M9=0,"",M43/M9*100) ->  | N47: =IF(P9=0,"",(P43-P44)/P9*100) ->  | O47: <mit/ohne> | P47: =IF(P9=0,"",P43/P9*100) -> 
A48: 48 | C48: Lagerraumbedarf bei Raumgewicht | K48: 7 | L48: dt/m³ | M48: =IF(K48=0,0,M7/K48) -> 32.14285714 | O48: dt/m³ | P48: =IF(N48=0,0,P7/N48) -> 0
A49: 49
A50: 50 | C50: Variable Kosten (v.K) der Eigenmechanisierung und Arbeitszeitbedarf (AKh)
A51: 51 | C51: Einh. | F51: Verfahren | J51: ZSp | K51: Umfang | L51: AKh | M51: ="v.K. ("&Curr&")" -> v.K. (€) | N51: Umfang | O51: AKh | P51: ="v.K. ("&Curr&")" -> v.K. (€)
A52: 52 | C52: 1 ha | F52: Pflügen (AnbDreh4F) | K52: 1 | L52: =2*K52 -> 2 | M52: =32.8*K52 -> 32.8 | N52: 1 | O52: =2*N52 -> 2 | P52: =32.8*N52 -> 32.8
A53: 53 | C53: 1 ha | F53: Saatbettkombi | J53: FB | K53: 1 | L53: =0.71*K53 -> 0.71 | M53: =12.09*K53 -> 12.09 | N53: 1 | O53: =0.71*N53 -> 0.71 | P53: =12.09*N53 -> 12.09
A54: 54 | C54: 1 ha | F54: Düng 6dt abHof (5km) | J54: FB | K54: 1 | L54: =0.5*K54 -> 0.5 | M54: =4.37*K54 -> 4.37 | N54: 1.2 | O54: =0.5*N54 -> 0.6 | P54: =4.37*N54 -> 5.244
A55: 55 | C55: 1 ha | F55: Drillen | J55: FB | K55: 1 | L55: 1 | M55: =9.52*K55 -> 9.52 | N55: 1 | O55: =0.82*N55 -> 0.82 | P55: =9.52*N55 -> 9.52
A56: 56 | C56: 1 ha | F56: Anbauspritze 12m | J56: FB | K56: 1 | L56: =0.38*K56 -> 0.38 | M56: =3.49*K56 -> 3.49 | N56: 1 | O56: =0.38*N56 -> 0.38 | P56: =3.49*N56 -> 3.49
A57: 57 | C57: 1 ha | F57: Anbauspritze 12m | J57: HH | K57: 0.5 | L57: =0.38*K57 -> 0.19 | M57: =3.49*K57 -> 1.745 | N57: 1 | O57: =0.38*N57 -> 0.38 | P57: =3.49*N57 -> 3.49
A58: 58 | C58: 1 ha | F58: Silotransport | J58: HE | K58: 1 | L58: 3.5 | M58: =39.2*K58 -> 39.2 | N58: 1.2 | O58: =1.89*2*N58 -> 4.536 | P58: =39.2*N58 -> 47.04
A59: 59 | C59: 1 ha | F59: Schwergrubbern | J59: HE | K59: 1 | L59: =0.7*K59 -> 0.7 | M59: =11.13*K59 -> 11.13 | N59: 1 | O59: =0.7*N59 -> 0.7 | P59: =11.13*N59 -> 11.13
A60: 60 | L60: 0 | M60: 0 | O60: 0 | P60: 0
A61: 61 | L61: 0 | M61: 0 | O61: 0 | P61: 0
A62: 62 | L62: 0 | M62: 0 | O62: 0 | P62: 0
A63: 63 | L63: 0 | M63: 0 | O63: 0 | P63: 0
A64: 64 | D64: Gesamt | K64: - | L64: =SUM(L52:L63) -> 8.98 | M64: =SUM(M52:M63) -> 114.345 | N64: - | O64: =SUM(O52:O63) -> 10.126 | P64: =SUM(P52:P63) -> 124.804
A65: =CELL("row",A65) -> 65

Sheet Getreide - GPS
A1: =CELL("row",A1) -> 1 | C1: Deckungsbeitragsrechnung für: | K1: Silomais | M1: Einheit: 1 | N1: ha | P1: < Formular 1 > | R1: Währung: | S1: €
A2: 2
A3: 3 | K3: Silomais 450 | N3: Silomais 550
A4: 4 | C4: Energieertrag | K4: %T Grüng. | L4: %T Futter | M4: % T-Verl. | N4: %T Grüng. | O4: %T Futter | P4: % T-Verl.
A5: 5 | D5: TM-Gehalte und -verluste | K5: 0.35 | L5: 0.35 | M5: 0.1
A6: 6 | J6: Einh. | K6: Brutto | L6: Gehalte | M6: Netto | N6: Brutto | O6: Gehalte | P6: Netto
A7: 7 | D7: Brutto-Grüngut / Netto-Futter | J7: dt | K7: 350 | L7: - | M7: =IF(L5=0,0,M8/L5) -> 315 | O7: - | P7: =IF(O5=0,0,P8/O5) -> 0
A8: 8 | D8: Trockenmasse | J8: dt | K8: =K7*K5 -> 122.5 | L8: - | M8: =K8*(1-M5) -> 110.25 | N8: =N7*N5 -> 0 | O8: - | P8: =N8*(1-P5) -> 0
A9: 9 | D9: Energie | G9: MJ NEL / dt T netto | J9: MJ | M9: =L9*M$8 -> 0 | P9: =O9*P$8 -> 0 | Q9: Wenn die Nährstoffgehalte auf Frischmasse-Basis angegeben werden,
A10: 10 | G10: MJ ME / dt T netto | J10: MJ | M10: =L10*M$8 -> 0 | P10: =O10*P$8 -> 0 | Q10: müssen die Formeln für die Gesamtnährstofferträge geändert werden!
A11: 11 | D11: Protein | G11: kg XP / dt T netto | J11: kg | M11: =L11*M$8 -> 0 | P11: =O11*P$8 -> 0
A12: 12 | C12: Proportional variable Spezialkosten
A13: 13 | C13: Saatgut | J13: Einh. | K13: Umfang | L13: =Curr&"/Einh." -> €/Einh. | M13: =Curr -> € | N13: =K13 -> Umfang | O13: =Curr&"/Einh." -> €/Einh. | P13: =Curr -> €
A14: 14 | D14: Getreide | J14: dt | K14: 2 | L14: 45 | M14: =L14*K14 -> 90 | P14: =O14*N14 -> 0
A15: 15 | L15: 0 | M15: =L15*K15 -> 0 | O15: 0 | P15: =O15*N15 -> 0
A16: 16 | D16: Saatgut gesamt | M16: =SUM(M14:M15) -> 90 | P16: =SUM(P14:P15) -> 0
A17: 17 | C17: Düngung | G17: kg NS / | H17: 1 dt T | I17: Bed. | J17: Ausn. | L17: =IF($A17=0,""," "&$G18&" : "&$H18&" = 1 :") -> GPfl. : = 1 : | O17: =IF($A17=0,""," "&$G18&" : "&$H18&" = 1 :") -> GPfl. : = 1 :
A18: 18 | D18: Nährstoff | G18: GPfl. | I18: fakt. | J18: Rückl. | K18: kg | L18: =Curr&"/"&K18 -> €/kg | M18: =Curr -> € | N18: =K18 -> kg | O18: =Curr&"/"&N18 -> €/kg | P18: =Curr -> €
A19: 19 | D19: N | G19: 0.56 | H19: 0 | I19: 1.1 | J19: 0 | K19: =IF($I$22=0,0,((($G19*K$7/$I$22)+($H19*K$7/$I$22*M$17))*$I19)-($H19*K$7/$I$22*M$17*$J19)) -> 215.6 | L19: 0.63 | M19: =L19*K19 -> 135.828 | N19: =IF($I$22=0,0,((($G19*N$8/$I$22)+($H19*N$8/$I$22*P$17))*$I19)-($H19*N$8/$I$22*P$17*$J19)) -> 0 | O19: 0.63 | P19: =O19*N19 -> 0
A20: 20 | D20: P2O5 | G20: 0.23 | H20: 0 | I20: 1 | J20: 0 | K20: =IF($I$22=0,0,((($G20*K$7/$I$22)+($H20*K$7/$I$22*M$17))*$I20)-($H20*K$7/$I$22*M$17*$J20)) -> 80.5 | L20: 0.58 | M20: =L20*K20 -> 46.69 | N20: =IF($I$22=0,0,((($G20*N$8/$I$22)+($H20*N$8/$I$22*P$17))*$I20)-($H20*N$8/$I$22*P$17*$J20)) -> 0 | O20: 0.58 | P20: =O20*N20 -> 0
A21: 21 | D21: K2O | G21: 0.47 | H21: 0 | I21: 1 | J21: 0 | K21: =IF($I$22=0,0,((($G21*K$7/$I$22)+($H21*K$7/$I$22*M$17))*$I21)-($H21*K$7/$I$22*M$17*$J21)) -> 164.5 | L21: 0.31 | M21: =L21*K21 -> 50.995 | N21: =IF($I$22=0,0,((($G21*N$8/$I$22)+($H21*N$8/$I$22*P$17))*$I21)-($H21*N$8/$I$22*P$17*$J21)) -> 0 | O21: 0.31 | P21: =O21*N21 -> 0
A22: 22 | D22: Düngung ges. | H22: =IF($A17=0,"","( "&H17&" =") -> ( 1 dt T = | I22: 1 | J22: =IF($A17=0,"",J7&" )") -> dt ) | M22: =SUM(M19:M21) -> 233.513 | P22: =SUM(P19:P21) -> 0
A23: 23 | C23: Pflanzenschutz | I23: ="Einh./"&Unit -> Einh./ha | K23: Umfang | L23: =Curr&"/Einh." -> €/Einh. | M23: =Curr -> € | N23: =K23 -> Umfang | O23: =Curr&"/Einh." -> €/Einh. | P23: =Curr -> €
A24: 24 | D24: Herbizid 1 (Unkräuter) | I24: 1.5 | J24: l | K24: 1 | L24: 38 | M24: =L24*K24*$I24 -> 57 | P24: =O24*N24*$I24 -> 0
A25: 25 | D25: Herbizid 2 (Gräser) | I25: 1 | J25: l | K25: 0.5 | L25: 50 | M25: =L25*K25*$I25 -> 25 | P25: =O25*N25*$I25 -> 0
A26: 26 | I26: 0 | L26: 0 | M26: =L26*K26*$I26 -> 0 | O26: 0 | P26: =O26*N26*$I26 -> 0
A27: 27 | I27: 0 | L27: 0 | M27: =L27*K27*$I27 -> 0 | O27: 0 | P27: =O27*N27*$I27 -> 0
A28: 28 | I28: 0 | L28: 0 | M28: =L28*K28*$I28 -> 0 | O28: 0 | P28: =O28*N28*$I28 -> 0
A29: 29 | D29: Pflanzenschutz gesamt | M29: =SUM(M24:M28) -> 82 | P29: =SUM(P24:P28) -> 0
A30: 30 | C30: Dienstleistungen | J30: Einh. | K30: Umfang | L30: =Curr&"/Einh." -> €/Einh. | M30: =Curr -> € | N30: =K30 -> Umfang | O30: =Curr&"/Einh." -> €/Einh. | P30: =Curr -> €
A31: 31 | D31: Maishäckseln | J31: 1 ha | K31: 1 | L31: 180 | M31: =L31*K31 -> 180 | P31: =O31*N31 -> 0
A32: 32 | D32: Walzschlepper mit Fahrer | J32: 1 h | K32: 2 | L32: 25 | M32: =L32*K32 -> 50 | P32: =O32*N32 -> 0
A33: =CELL("row",A33) -> 33 | L33: 0 | M33: =L33*K33 -> 0 | O33: 0 | P33: =O33*N33 -> 0
A34: 34 | L34: 0 | M34: =L34*K34 -> 0 | O34: 0 | P34: =O34*N34 -> 0
A35: 35 | L35: 0 | M35: =L35*K35 -> 0 | O35: 0 | P35: =O35*N35 -> 0
A36: 36 | D36: Dienstleistungen gesamt | M36: =SUM(M31:M35) -> 230 | P36: =SUM(P31:P35) -> 0
A37: 37 | C37: Variable Kosten der Eigenmech. | M37: =M64 -> 114.345 | P37: =P64 -> 124.804
A38: 38 | C38: Sonstige Kosten | H38: Erläuterung | K38: Umfang | L38: =Curr&"/Einh." -> €/Einh. | M38: =Curr -> € | N38: =K38 -> Umfang | O38: =Curr&"/Einh." -> €/Einh. | P38: =Curr -> €
A39: 39 | D39: Silierung | H39: (Folie/Anstrich) | K39: =M48 -> 52.5 | L39: 0.75 | M39: =L39*K39 -> 39.375 | P39: =O39*N39 -> 0
A40: 40 | D40: Versicherung | H40: (Hagel) | K40: 1 | L40: 21 | M40: =L40*K40 -> 21 | P40: =O40*N40 -> 0
A41: 41 | M41: =L41*K41 -> 0 | P41: =O41*N41 -> 0
A42: 42 | M42: =L42*K42 -> 0 | P42: =O42*N42 -> 0
A43: 43 | C43: Variable Kosten insgesamt | M43: =SUM(M39:M42,M37,M36,M29,M22,M16) -> 810.233 | P43: =SUM(P39:P42,P37,P36,P29,P22,P16) -> 124.804
A44: 44 | C44: Ausgl.-zahl.: | I44: Silomais | J44: ha | K44: 1 | L44: 299 | M44: =L44*K44 -> 299 | P44: =O44*N44 -> 0
A45: 45 | C45: Deckungsbeitrag (ggf. mit Prämie) | M45: =M44-M43 -> -511.233 | P45: =P44-P43 -> -124.804
A46: 46 | C46: Bedarf an Umlaufvermögen | K46: 0.5 | L46: der v.Ko. | M46: =M43*K46 -> 405.1165 | N46: 0.5 | O46: der v.Ko. | P46: =P43*N46 -> 62.402
A47: 47 | C47: Var. Ko. je 100 MJ NEL mit / ohne Prämie | K47: =IF(M9=0,"",(M43-M44)/M9*100) ->  | L47: <mit/ohne> | M47: =IF(M9=0,"",M43/M9*100) ->  | N47: =IF(P9=0,"",(P43-P44)/P9*100) ->  | O47: <mit/ohne> | P47: =IF(P9=0,"",P43/P9*100) -> 
A48: 48 | C48: Lagerraumbedarf bei Raumgewicht | K48: 6 | L48: dt/m³ | M48: =IF(K48=0,0,M7/K48) -> 52.5 | N48: 5 | O48: dt/m³ | P48: =IF(N48=0,0,P7/N48) -> 0
A49: 49
A50: 50 | C50: Variable Kosten (v.K) der Eigenmechanisierung und Arbeitszeitbedarf (AKh)
A51: 51 | C51: Einh. | F51: Verfahren | J51: ZSp | K51: Umfang | L51: AKh | M51: ="v.K. ("&Curr&")" -> v.K. (€) | N51: Umfang | O51: AKh | P51: ="v.K. ("&Curr&")" -> v.K. (€)
A52: 52 | C52: 1 ha | F52: Pflügen (AnbDreh4F) | K52: 1 | L52: =2*K52 -> 2 | M52: =32.8*K52 -> 32.8 | N52: 1 | O52: =2*N52 -> 2 | P52: =32.8*N52 -> 32.8
A53: 53 | C53: 1 ha | F53: Saatbettkombi | J53: FB | K53: 1 | L53: =0.71*K53 -> 0.71 | M53: =12.09*K53 -> 12.09 | N53: 1 | O53: =0.71*N53 -> 0.71 | P53: =12.09*N53 -> 12.09
A54: 54 | C54: 1 ha | F54: Düng 6dt abHof (5km) | J54: FB | K54: 1 | L54: =0.5*K54 -> 0.5 | M54: =4.37*K54 -> 4.37 | N54: 1.2 | O54: =0.5*N54 -> 0.6 | P54: =4.37*N54 -> 5.244
A55: 55 | C55: 1 ha | F55: Drillen | J55: FB | K55: 1 | L55: 1 | M55: =9.52*K55 -> 9.52 | N55: 1 | O55: =0.82*N55 -> 0.82 | P55: =9.52*N55 -> 9.52
A56: 56 | C56: 1 ha | F56: Anbauspritze 12m | J56: FB | K56: 1 | L56: =0.38*K56 -> 0.38 | M56: =3.49*K56 -> 3.49 | N56: 1 | O56: =0.38*N56 -> 0.38 | P56: =3.49*N56 -> 3.49
A57: 57 | C57: 1 ha | F57: Anbauspritze 12m | J57: HH | K57: 0.5 | L57: =0.38*K57 -> 0.19 | M57: =3.49*K57 -> 1.745 | N57: 1 | O57: =0.38*N57 -> 0.38 | P57: =3.49*N57 -> 3.49
A58: 58 | C58: 1 ha | F58: Silotransport | J58: HE | K58: 1 | L58: 3.6 | M58: =39.2*K58 -> 39.2 | N58: 1.2 | O58: =1.89*2*N58 -> 4.536 | P58: =39.2*N58 -> 47.04
A59: 59 | C59: 1 ha | F59: Schwergrubbern | J59: HE | K59: 1 | L59: =0.7*K59 -> 0.7 | M59: =11.13*K59 -> 11.13 | N59: 1 | O59: =0.7*N59 -> 0.7 | P59: =11.13*N59 -> 11.13
A60: 60 | L60: 0 | M60: 0 | O60: 0 | P60: 0
A61: 61 | L61: 0 | M61: 0 | O61: 0 | P61: 0
A62: 62 | L62: 0 | M62: 0 | O62: 0 | P62: 0
A63: 63 | L63: 0 | M63: 0 | O63: 0 | P63: 0
A64: 64 | D64: Gesamt | K64: - | L64: =SUM(L52:L63) -> 9.08 | M64: =SUM(M52:M63) -> 114.345 | N64: - | O64: =SUM(O52:O63) -> 10.126 | P64: =SUM(P52:P63) -> 124.804
A65: 65

Sheet Silomais
A1: =CELL("row",A1) -> 1 | C1: Deckungsbeitragsrechnung für: | K1: Silomais | M1: Einheit: 1 | N1: ha | P1: < Formular 1 > | R1: Währung: | S1: €
A2: 2
A3: 3 | K3: Silomais 450 | N3: Silomais 550
A4: 4 | C4: Energieertrag | K4: %T Grüng. | L4: %T Futter | M4: % T-Verl. | N4: %T Grüng. | O4: %T Futter | P4: % T-Verl.
A5: 5 | D5: TM-Gehalte und -verluste | K5: 0.3 | L5: 0.3 | M5: 0.1
A6: 6 | J6: Einh. | K6: Brutto | L6: Gehalte | M6: Netto | N6: Brutto | O6: Gehalte | P6: Netto
A7: 7 | D7: Brutto-Grüngut / Netto-Futter | J7: dt | K7: 450 | L7: - | M7: =IF(L5=0,0,M8/L5) -> 405 | O7: - | P7: =IF(O5=0,0,P8/O5) -> 0
A8: 8 | D8: Trockenmasse | J8: dt | K8: =K7*K5 -> 135 | L8: - | M8: =K8*(1-M5) -> 121.5 | N8: =N7*N5 -> 0 | O8: - | P8: =N8*(1-P5) -> 0
A9: 9 | D9: Energie | G9: MJ NEL / dt T netto | J9: MJ | M9: =L9*M$8 -> 0 | P9: =O9*P$8 -> 0 | Q9: Wenn die Nährstoffgehalte auf Frischmasse-Basis angegeben werden,
A10: 10 | G10: MJ ME / dt T netto | J10: MJ | M10: =L10*M$8 -> 0 | P10: =O10*P$8 -> 0 | Q10: müssen die Formeln für die Gesamtnährstofferträge geändert werden!
A11: 11 | D11: Protein | G11: kg XP / dt T netto | J11: kg | M11: =L11*M$8 -> 0 | P11: =O11*P$8 -> 0
A12: 12 | C12: Proportional variable Spezialkosten
A13: 13 | C13: Saatgut | J13: Einh. | K13: Umfang | L13: =Curr&"/Einh." -> €/Einh. | M13: =Curr -> € | N13: =K13 -> Umfang | O13: =Curr&"/Einh." -> €/Einh. | P13: =Curr -> €
A14: 14 | D14: Mais (Silo) | J14: Pack | K14: 1.8 | L14: 70 | M14: =L14*K14 -> 126 | P14: =O14*N14 -> 0
A15: 15 | L15: 0 | M15: =L15*K15 -> 0 | O15: 0 | P15: =O15*N15 -> 0
A16: 16 | D16: Saatgut gesamt | M16: =SUM(M14:M15) -> 126 | P16: =SUM(P14:P15) -> 0
A17: 17 | C17: Düngung | G17: kg NS / | H17: 1 dt T | I17: Bed. | J17: Ausn. | L17: =IF($A17=0,""," "&$G18&" : "&$H18&" = 1 :") -> GPfl. : = 1 : | O17: =IF($A17=0,""," "&$G18&" : "&$H18&" = 1 :") -> GPfl. : = 1 :
A18: 18 | D18: Nährstoff | G18: GPfl. | I18: fakt. | J18: Rückl. | K18: kg | L18: =Curr&"/"&K18 -> €/kg | M18: =Curr -> € | N18: =K18 -> kg | O18: =Curr&"/"&N18 -> €/kg | P18: =Curr -> €
A19: 19 | D19: N | G19: 1.3 | H19: 0 | I19: 1.1 | J19: 0 | K19: =IF($I$22=0,0,((($G19*K$8/$I$22)+($H19*K$8/$I$22*M$17))*$I19)-($H19*K$8/$I$22*M$17*$J19)) -> 193.05 | L19: 0.63 | M19: =L19*K19 -> 121.6215 | N19: =IF($I$22=0,0,((($G19*N$8/$I$22)+($H19*N$8/$I$22*P$17))*$I19)-($H19*N$8/$I$22*P$17*$J19)) -> 0 | O19: 0.63 | P19: =O19*N19 -> 0
A20: 20 | D20: P2O5 | G20: 0.7 | H20: 0 | I20: 1 | J20: 0 | K20: =IF($I$22=0,0,((($G20*K$8/$I$22)+($H20*K$8/$I$22*M$17))*$I20)-($H20*K$8/$I$22*M$17*$J20)) -> 94.5 | L20: 0.58 | M20: =L20*K20 -> 54.81 | N20: =IF($I$22=0,0,((($G20*N$8/$I$22)+($H20*N$8/$I$22*P$17))*$I20)-($H20*N$8/$I$22*P$17*$J20)) -> 0 | O20: 0.58 | P20: =O20*N20 -> 0
A21: 21 | D21: K2O | G21: 1.7 | H21: 0 | I21: 1 | J21: 0 | K21: =IF($I$22=0,0,((($G21*K$8/$I$22)+($H21*K$8/$I$22*M$17))*$I21)-($H21*K$8/$I$22*M$17*$J21)) -> 229.5 | L21: 0.31 | M21: =L21*K21 -> 71.145 | N21: =IF($I$22=0,0,((($G21*N$8/$I$22)+($H21*N$8/$I$22*P$17))*$I21)-($H21*N$8/$I$22*P$17*$J21)) -> 0 | O21: 0.31 | P21: =O21*N21 -> 0
A22: 22 | D22: Düngung ges. | H22: =IF($A17=0,"","( "&H17&" =") -> ( 1 dt T = | I22: 1 | J22: =IF($A17=0,"",J7&" )") -> dt ) | M22: =SUM(M19:M21) -> 247.5765 | P22: =SUM(P19:P21) -> 0
A23: 23 | C23: Pflanzenschutz | I23: ="Einh./"&Unit -> Einh./ha | K23: Umfang | L23: =Curr&"/Einh." -> €/Einh. | M23: =Curr -> € | N23: =K23 -> Umfang | O23: =Curr&"/Einh." -> €/Einh. | P23: =Curr -> €
A24: 24 | D24: Herbizid 1 (Unkräuter) | I24: 1.5 | J24: l | K24: 1 | L24: 38 | M24: =L24*K24*$I24 -> 57 | P24: =O24*N24*$I24 -> 0
A25: 25 | D25: Herbizid 2 (Gräser) | I25: 1 | J25: l | K25: 0.5 | L25: 50 | M25: =L25*K25*$I25 -> 25 | P25: =O25*N25*$I25 -> 0
A26: 26 | I26: 0 | L26: 0 | M26: =L26*K26*$I26 -> 0 | O26: 0 | P26: =O26*N26*$I26 -> 0
A27: 27 | I27: 0 | L27: 0 | M27: =L27*K27*$I27 -> 0 | O27: 0 | P27: =O27*N27*$I27 -> 0
A28: 28 | I28: 0 | L28: 0 | M28: =L28*K28*$I28 -> 0 | O28: 0 | P28: =O28*N28*$I28 -> 0
A29: 29 | D29: Pflanzenschutz gesamt | M29: =SUM(M24:M28) -> 82 | P29: =SUM(P24:P28) -> 0
A30: 30 | C30: Dienstleistungen | J30: Einh. | K30: Umfang | L30: =Curr&"/Einh." -> €/Einh. | M30: =Curr -> € | N30: =K30 -> Umfang | O30: =Curr&"/Einh." -> €/Einh. | P30: =Curr -> €
A31: 31 | D31: Maishäckseln | J31: 1 ha | K31: 1 | L31: 160 | M31: =L31*K31 -> 160 | P31: =O31*N31 -> 0
A32: 32 | D32: Walzschlepper mit Fahrer | J32: 1 h | K32: 2 | L32: 25 | M32: =L32*K32 -> 50 | P32: =O32*N32 -> 0
A33: =CELL("row",A33) -> 33 | L33: 0 | M33: =L33*K33 -> 0 | O33: 0 | P33: =O33*N33 -> 0
A34: 34 | L34: 0 | M34: =L34*K34 -> 0 | O34: 0 | P34: =O34*N34 -> 0
A35: 35 | L35: 0 | M35: =L35*K35 -> 0 | O35: 0 | P35: =O35*N35 -> 0
A36: 36 | D36: Dienstleistungen gesamt | M36: =SUM(M31:M35) -> 210 | P36: =SUM(P31:P35) -> 0
A37: 37 | C37: Variable Kosten der Eigenmech. | M37: =M64 -> 114.345 | P37: =P64 -> 124.804
A38: 38 | C38: Sonstige Kosten | H38: Erläuterung | K38: Umfang | L38: =Curr&"/Einh." -> €/Einh. | M38: =Curr -> € | N38: =K38 -> Umfang | O38: =Curr&"/Einh." -> €/Einh. | P38: =Curr -> €
A39: 39 | D39: Silierung | H39: (Folie/Anstrich) | K39: =M48 -> 67.5 | L39: 0.75 | M39: =L39*K39 -> 50.625 | P39: =O39*N39 -> 0
A40: 40 | D40: Versicherung | H40: (Hagel) | K40: 1 | L40: 21 | M40: =L40*K40 -> 21 | P40: =O40*N40 -> 0
A41: 41 | M41: =L41*K41 -> 0 | P41: =O41*N41 -> 0
A42: 42 | M42: =L42*K42 -> 0 | P42: =O42*N42 -> 0
A43: 43 | C43: Variable Kosten insgesamt | M43: =SUM(M39:M42,M37,M36,M29,M22,M16) -> 851.5465 | P43: =SUM(P39:P42,P37,P36,P29,P22,P16) -> 124.804
A44: 44 | C44: Ausgl.-zahl.: | I44: Silomais | J44: ha | K44: 1 | L44: 299 | M44: =L44*K44 -> 299 | P44: =O44*N44 -> 0
A45: 45 | C45: Deckungsbeitrag (ggf. mit Prämie) | M45: =M44-M43 -> -552.5465 | P45: =P44-P43 -> -124.804
A46: 46 | C46: Bedarf an Umlaufvermögen | K46: 0.5 | L46: der v.Ko. | M46: =M43*K46 -> 425.77325 | O46: der v.Ko. | P46: =P43*N46 -> 0
A47: 47 | C47: Var. Ko. je 100 MJ NEL mit / ohne Prämie | K47: =IF(M9=0,"",(M43-M44)/M9*100) ->  | L47: <mit/ohne> | M47: =IF(M9=0,"",M43/M9*100) ->  | N47: =IF(P9=0,"",(P43-P44)/P9*100) ->  | O47: <mit/ohne> | P47: =IF(P9=0,"",P43/P9*100) -> 
A48: 48 | C48: Lagerraumbedarf bei Raumgewicht | K48: 6 | L48: dt/m³ | M48: =IF(K48=0,0,M7/K48) -> 67.5 | O48: dt/m³ | P48: =IF(N48=0,0,P7/N48) -> 0
A49: 49
A50: 50 | C50: Variable Kosten (v.K) der Eigenmechanisierung und Arbeitszeitbedarf (AKh)
A51: 51 | C51: Einh. | F51: Verfahren | J51: ZSp | K51: Umfang | L51: AKh | M51: ="v.K. ("&Curr&")" -> v.K. (€) | N51: Umfang | O51: AKh | P51: ="v.K. ("&Curr&")" -> v.K. (€)
A52: 52 | C52: 1 ha | F52: Pflügen (AnbDreh4F) | K52: 1 | L52: =2*K52 -> 2 | M52: =32.8*K52 -> 32.8 | N52: 1 | O52: =2*N52 -> 2 | P52: =32.8*N52 -> 32.8
A53: 53 | C53: 1 ha | F53: Saatbettkombi | J53: FB | K53: 1 | L53: =0.71*K53 -> 0.71 | M53: =12.09*K53 -> 12.09 | N53: 1 | O53: =0.71*N53 -> 0.71 | P53: =12.09*N53 -> 12.09
A54: 54 | C54: 1 ha | F54: Düng 6dt abHof (5km) | J54: FB | K54: 1 | L54: =0.5*K54 -> 0.5 | M54: =4.37*K54 -> 4.37 | N54: 1.2 | O54: =0.5*N54 -> 0.6 | P54: =4.37*N54 -> 5.244
A55: 55 | C55: 1 ha | F55: Mais-EK-Drillen 4r | J55: FB | K55: 1 | L55: =0.82*K55 -> 0.82 | M55: =9.52*K55 -> 9.52 | N55: 1 | O55: =0.82*N55 -> 0.82 | P55: =9.52*N55 -> 9.52
A56: 56 | C56: 1 ha | F56: Anbauspritze 12m | J56: FB | K56: 1 | L56: =0.38*K56 -> 0.38 | M56: =3.49*K56 -> 3.49 | N56: 1 | O56: =0.38*N56 -> 0.38 | P56: =3.49*N56 -> 3.49
A57: 57 | C57: 1 ha | F57: Anbauspritze 12m | J57: HH | K57: 0.5 | L57: =0.38*K57 -> 0.19 | M57: =3.49*K57 -> 1.745 | N57: 1 | O57: =0.38*N57 -> 0.38 | P57: =3.49*N57 -> 3.49
A58: 58 | C58: 1 ha | F58: Silomaistransport | J58: HE | K58: 1 | L58: =1.89*2*K58 -> 3.78 | M58: =39.2*K58 -> 39.2 | N58: 1.2 | O58: =1.89*2*N58 -> 4.536 | P58: =39.2*N58 -> 47.04
A59: 59 | C59: 1 ha | F59: Schwergrubbern | J59: HE | K59: 1 | L59: =0.7*K59 -> 0.7 | M59: =11.13*K59 -> 11.13 | N59: 1 | O59: =0.7*N59 -> 0.7 | P59: =11.13*N59 -> 11.13
A60: 60 | L60: 0 | M60: 0 | O60: 0 | P60: 0
A61: 61 | L61: 0 | M61: 0 | O61: 0 | P61: 0
A62: 62 | L62: 0 | M62: 0 | O62: 0 | P62: 0
A63: 63 | L63: 0 | M63: 0 | O63: 0 | P63: 0
A64: 64 | D64: Gesamt | K64: - | L64: =SUM(L52:L63) -> 9.08 | M64: =SUM(M52:M63) -> 114.345 | N64: - | O64: =SUM(O52:O63) -> 10.126 | P64: =SUM(P52:P63) -> 124.804
A65: 65
